Workbook

Sheet DataMorris
A1: Date | B1: Time | C1: Observers | D1: Obs No | E1: Sky | F1: Wind | G1: Temp | H1: Exp | I1: Plot | J1: Crop | K1: % Flower Cover | L1: Honey Bee | M1: Bumblebee | N1: Small bee | O1: Flies | P1: Butterflies | Q1: Beetles | R1: Other | S1: Total | T1: T/cov | U1: Notes | V1: Timer Interval
A2: 2017-05-04 | B2: 12:47:58 | C2: mt | D2: 1 | E2: Partly Cloudy | F2: 10 | G2: 65 | H2: CAP-M | I2: 206 | J2: PC | K2: 0.5 | L2: 0 | M2: 0 | N2: 0 | O2: 0 | P2: 0 | Q2: 0 | R2: 0 | S2: =SUM(L2:R2) -> 0 | T2: =S2/K2 -> 0 | V2: 1
A3: 2017-05-04 | B3: 12:50:59 | C3: mt | D3: 1 | E3: Partly Cloudy | F3: 10 | G3: 65 | H3: CAP-M | I3: 213 | J3: PC | K3: 1 | L3: 0 | M3: 0 | N3: 0 | O3: 1 | P3: 0 | Q3: 0 | R3: 0 | S3: =SUM(L3:R3) -> 1 | T3: =S3/K3 -> 1 | V3: 1
A4: 2017-05-04 | B4: 12:54:47 | C4: mt | D4: 1 | E4: Partly Cloudy | F4: 10 | G4: 65 | H4: CAP-M | I4: 223 | J4: PC | K4: 1 | L4: 0 | M4: 0 | N4: 2 | O4: 0 | P4: 0 | Q4: 0 | R4: 0 | S4: 2 | T4: 2 | V4: 1
A5: 2017-05-04 | B5: 12:57:31 | C5: mt | D5: 1 | E5: Partly Cloudy | F5: 10 | G5: 65 | H5: CAP-M | I5: 232 | J5: PC | K5: 0.5 | L5: 0 | M5: 0 | N5: 0 | O5: 1 | P5: 0 | Q5: 0 | R5: 1 | S5: 2 | T5: 4 | V5: 1
A6: 2017-05-05 | B6: 12:18:55 | C6: je | D6: 1 | E6: Partly Cloudy | F6: 15 | G6: 70 | H6: CAP-M | I6: 206 | J6: PC | K6: 1 | L6: 0 | M6: 0 | N6: 1 | O6: 0 | P6: 0 | Q6: 0 | R6: 0 | S6: 1 | T6: 1 | V6: 1
A7: 2017-05-05 | B7: 12:20:58 | C7: je | D7: 1 | E7: Partly Cloudy | F7: 15 | G7: 70 | H7: CAP-M | I7: 213 | J7: PC | K7: 1 | L7: 0 | M7: 0 | N7: 0 | O7: 0 | P7: 0 | Q7: 1 | R7: 0 | S7: 1 | T7: 1 | V7: 1
A8: 2017-05-05 | B8: 12:23:40 | C8: je | D8: 1 | E8: Partly Cloudy | F8: 15 | G8: 70 | H8: CAP-M | I8: 223 | J8: PC | K8: 1 | L8: 0 | M8: 0 | N8: 0 | O8: 1 | P8: 0 | Q8: 2 | R8: 0 | S8: 3 | T8: 3 | V8: 1
A9: 2017-05-05 | B9: 12:25:10 | C9: je | D9: 1 | E9: Partly Cloudy | F9: 15 | G9: 70 | H9: CAP-M | I9: 232 | J9: PC | K9: 0.5 | L9: 0 | M9: 0 | N9: 1 | O9: 0 | P9: 0 | Q9: 0 | R9: 0 | S9: 1 | T9: 2 | V9: 1
A10: 2017-05-06 | B10: 11:40:28 | C10: je | D10: 1 | E10: Clear | F10: 5 | G10: 70 | H10: CAP-M | I10: 206 | J10: PC | K10: 1 | L10: 0 | M10: 0 | N10: 0 | O10: 1 | P10: 0 | Q10: 1 | R10: 0 | S10: 2 | T10: 2 | V10: 1
A11: 2017-05-06 | B11: 11:43:31 | C11: je | D11: 1 | E11: Clear | F11: 5 | G11: 70 | H11: CAP-M | I11: 213 | J11: PC | K11: 1 | L11: 0 | M11: 0 | N11: 1 | O11: 1 | P11: 0 | Q11: 0 | R11: 0 | S11: 2 | T11: 2 | V11: 1
A12: 2017-05-06 | B12: 11:50:45 | C12: je | D12: 1 | E12: Clear | F12: 5 | G12: 70 | H12: CAP-M | I12: 223 | J12: PC | K12: 1 | L12: 0 | M12: 0 | N12: 0 | O12: 1 | P12: 0 | Q12: 1 | R12: 0 | S12: 2 | T12: 2 | V12: 1
A13: 2017-05-06 | B13: 11:58:24 | C13: je | D13: 1 | E13: Clear | F13: 5 | G13: 70 | H13: CAP-M | I13: 232 | J13: PC | K13: 1 | L13: 0 | M13: 0 | N13: 1 | O13: 0 | P13: 0 | Q13: 2 | R13: 2 | S13: 5 | T13: 5 | V13: 1
A14: 2017-05-12 | B14: 11:51:00 | C14: je | D14: 1 | E14: Clear | F14: 15 | G14: 70 | H14: CAP-M | I14: 206 | J14: PC | K14: 4 | L14: 0 | M14: 0 | N14: 2 | O14: 1 | P14: 0 | Q14: 1 | R14: 0 | S14: 4 | T14: 1 | V14: 1
A15: 2017-05-12 | B15: 11:54:00 | C15: je | D15: 1 | E15: Clear | F15: 15 | G15: 70 | H15: CAP-M | I15: 213 | J15: PC | K15: 3 | L15: 0 | M15: 0 | N15: 0 | O15: 1 | P15: 0 | Q15: 0 | R15: 1 | S15: 2 | T15: 0.6666666667 | V15: 1
A16: 2017-05-12 | B16: 11:56:00 | C16: je | D16: 1 | E16: Clear | F16: 15 | G16: 70 | H16: CAP-M | I16: 223 | J16: PC | K16: 5 | L16: 0 | M16: 0 | N16: 0 | O16: 2 | P16: 0 | Q16: 0 | R16: 1 | S16: 3 | T16: 0.6 | V16: 1
A17: 2017-05-12 | B17: 11:55:00 | C17: je | D17: 1 | E17: Clear | F17: 15 | G17: 70 | H17: CAP-M | I17: 232 | J17: PC | K17: 4 | L17: 0 | M17: 0 | N17: 0 | O17: 1 | P17: 0 | Q17: 0 | R17: 0 | S17: 1 | T17: 0.25 | V17: 1
A18: 2017-05-14 | B18: 12:18:53 | C18: mt | D18: 1 | E18: Clear | F18: 5 | G18: 75 | H18: CAP-M | I18: 206 | J18: PC | K18: 4 | L18: 0 | M18: 0 | N18: 0 | O18: 1 | P18: 0 | Q18: 0 | R18: 0 | S18: 1 | T18: 0.25 | V18: 1
A19: 2017-05-14 | B19: 12:23:45 | C19: mt | D19: 1 | E19: Clear | F19: 5 | G19: 75 | H19: CAP-M | I19: 213 | J19: PC | K19: 2 | L19: 0 | M19: 0 | N19: 0 | O19: 0 | P19: 0 | Q19: 0 | R19: 0 | S19: 0 | T19: 0 | V19: 1
A20: 2017-05-14 | B20: 12:26:25 | C20: mt | D20: 1 | E20: Clear | F20: 5 | G20: 75 | H20: CAP-M | I20: 223 | J20: PC | K20: 3 | L20: 0 | M20: 0 | N20: 0 | O20: 0 | P20: 0 | Q20: 0 | R20: 0 | S20: 0 | T20: 0 | V20: 1
A21: 2017-05-14 | B21: 12:28:39 | C21: mt | D21: 1 | E21: Clear | F21: 5 | G21: 75 | H21: CAP-M | I21: 232 | J21: PC | K21: 3 | L21: 0 | M21: 0 | N21: 0 | O21: 0 | P21: 0 | Q21: 0 | R21: 0 | S21: 0 | T21: 0 | V21: 1
A22: 2017-05-15 | B22: 15:18:25 | C22: mt | D22: 1 | E22: Overcast | F22: 5 | G22: 70 | H22: CAP-M | I22: 206 | J22: PC | K22: 2 | L22: 0 | M22: 0 | N22: 2 | O22: 0 | P22: 0 | Q22: 0 | R22: 0 | S22: 2 | T22: 1 | V22: 1
A23: 2017-05-15 | B23: 15:21:27 | C23: mt | D23: 1 | E23: Overcast | F23: 5 | G23: 70 | H23: CAP-M | I23: 213 | J23: PC | K23: 1 | L23: 0 | M23: 0 | N23: 0 | O23: 0 | P23: 0 | Q23: 1 | R23: 0 | S23: 1 | T23: 1 | V23: 1
A24: 2017-05-15 | B24: 15:24:15 | C24: mt | D24: 1 | E24: Overcast | F24: 5 | G24: 70 | H24: CAP-M | I24: 223 | J24: PC | K24: 1 | L24: 0 | M24: 0 | N24: 2 | O24: 0 | P24: 0 | Q24: 0 | R24: 0 | S24: 2 | T24: 2 | V24: 1
A25: 2017-05-15 | B25: 15:27:04 | C25: mt | D25: 1 | E25: Overcast | F25: 5 | G25: 70 | H25: CAP-M | I25: 232 | J25: PC | K25: 2 | L25: 0 | M25: 0 | N25: 1 | O25: 1 | P25: 0 | Q25: 0 | R25: 0 | S25: 2 | T25: 1 | V25: 1
K27: Pennycress | L27: =SUM(L2:L25) -> 0 | M27: =SUM(M2:M25) -> 0 | N27: 13 | O27: 13 | P27: 0 | Q27: 9 | R27: 5 | S27: 40
H28: Wind | I28: Temp | J28: Averages by observation date
E29: 33 | F29: =AVERAGE(F2:F5) -> 10 | G29: 65 | H29: =F29*1.64 -> 16.4 | I29: =(G29-32)/1.8 -> 18.33333333 | J29: 2018-05-04 | K29: =AVERAGE(K2:K5) -> 0.75 | L29: =AVERAGE(L2:L5) -> 0 | M29: 0 | N29: 0.5 | O29: 0.5 | P29: 0 | Q29: 0 | R29: 0.25 | S29: 1.25 | T29: 1.75
E30: 33 | F30: =AVERAGE(F6:F9) -> 15 | G30: 70 | H30: =F30*1.64 -> 24.6 | I30: =(G30-32)/1.8 -> 21.11111111 | J30: 2018-05-05 | K30: =AVERAGE(K6:K9) -> 0.875 | L30: =AVERAGE(L6:L9) -> 0 | M30: 0 | N30: 0.5 | O30: 0.25 | P30: 0 | Q30: 0.75 | R30: 0 | S30: 1.5 | T30: 1.75
E31: 100 | F31: =AVERAGE(F10:F13) -> 5 | G31: 70 | H31: 8.2 | I31: 21.11111111 | J31: 2018-05-06 | K31: =AVERAGE(K10:K13) -> 1 | L31: =AVERAGE(L10:L13) -> 0 | M31: 0 | N31: 0.5 | O31: 0.75 | P31: 0 | Q31: 1 | R31: 0.5 | S31: 2.75 | T31: 2.75
E32: 100 | F32: =AVERAGE(F14:F17) -> 15 | G32: 70 | H32: 24.6 | I32: 21.11111111 | J32: 2018-05-12 | K32: =AVERAGE(K14:K17) -> 4 | L32: =AVERAGE(L14:L17) -> 0 | M32: 0 | N32: 0.5 | O32: 1.25 | P32: 0 | Q32: 0.25 | R32: 0.5 | S32: 2.5 | T32: 0.6291666667
E33: 100 | F33: =AVERAGE(F18:F21) -> 5 | G33: 75 | H33: 8.2 | I33: 23.88888889 | J33: 2018-05-14 | K33: =AVERAGE(K18:K21) -> 3 | L33: =AVERAGE(L18:L21) -> 0 | M33: 0 | N33: 0 | O33: 0.25 | P33: 0 | Q33: 0 | R33: 0 | S33: 0.25 | T33: 0.0625
E34: 0 | F34: =AVERAGE(F22:F25) -> 5 | G34: 70 | H34: 8.2 | I34: 21.11111111 | J34: 2018-05-15 | K34: =AVERAGE(K22:K25) -> 1.5 | L34: =AVERAGE(L22:L25) -> 0 | M34: 0 | N34: 1.25 | O34: 0.25 | P34: 0 | Q34: 0.25 | R34: 0 | S34: 1.75 | T34: 1.25
J35: S.E.
J36: 2018-05-04 | K36: =STDEV(K2:K5)/SQRT(COUNT(K2:K5)) -> 0.1443375673 | L36: =STDEV(L2:L5)/SQRT(COUNT(L2:L5)) -> 0 | M36: 0 | N36: 0.5 | O36: 0.2886751346 | P36: 0 | Q36: 0 | R36: 0.25 | S36: 0.4787135539 | T36: 0.8539125638
J37: 2018-05-05 | K37: =STDEV(K6:K9)/SQRT(COUNT(K6:K9)) -> 0.125 | L37: =STDEV(L6:L9)/SQRT(COUNT(L6:L9)) -> 0 | M37: 0 | N37: 0.2886751346 | O37: 0.25 | P37: 0 | Q37: 0.4787135539 | R37: 0 | S37: 0.5 | T37: 0.4787135539
J38: 2018-05-06 | K38: =STDEV(K10:K13)/SQRT(COUNT(K10:K13)) -> 0 | L38: =STDEV(L10:L13)/SQRT(COUNT(L10:L13)) -> 0 | M38: 0 | N38: 0.2886751346 | O38: 0.25 | P38: 0 | Q38: 0.4082482905 | R38: 0.5 | S38: 0.75 | T38: 0.75
J39: 2018-05-12 | K39: =STDEV(K14:K17)/SQRT(COUNT(K14:K17)) -> 0.4082482905 | L39: =STDEV(L14:L17)/SQRT(COUNT(L14:L17)) -> 0 | M39: 0 | N39: 0.5 | O39: 0.25 | P39: 0 | Q39: 0.25 | R39: 0.2886751346 | S39: 0.6454972244 | T39: 0.1537155562
J40: 2018-05-14 | K40: =STDEV(K18:K21)/SQRT(COUNT(K18:K21)) -> 0.4082482905 | L40: =STDEV(L18:L21)/SQRT(COUNT(L18:L21)) -> 0 | M40: 0 | N40: 0 | O40: 0.25 | P40: 0 | Q40: 0 | R40: 0 | S40: 0.25 | T40: 0.0625
J41: 2018-05-15 | K41: =STDEV(K22:K25)/SQRT(COUNT(K22:K25)) -> 0.2886751346 | L41: =STDEV(L22:L25)/SQRT(COUNT(L22:L25)) -> 0 | M41: 0 | N41: 0.4787135539 | O41: 0.25 | P41: 0 | Q41: 0.25 | R41: 0 | S41: 0.25 | T41: 0.25
J43: Overall averages and S.E.
F44: =AVERAGE(F2:F25) -> 9.166666667 | G44: 70 | J44: Average | K44: =AVERAGE(K2:K25) -> 1.854166667 | L44: =AVERAGE(L2:L25) -> 0 | M44: 0 | N44: 0.5416666667 | O44: 0.5416666667 | P44: 0 | Q44: 0.375 | R44: 0.2083333333 | S44: 1.666666667 | T44: 1.365277778
F45: =STDEV(F2:F25)/SQRT(COUNT(F2:F25)) -> 0.9357370703 | G45: 0.6019292654 | J45: S.E. | K45: =STDEV(K2:K25)/SQRT(COUNT(K2:K25)) -> 0.2733301851 | L45: =STDEV(L2:L25)/SQRT(COUNT(L2:L25)) -> 0 | M45: 0 | N45: 0.1590183504 | O45: 0.120071939 | P45: 0 | Q45: 0.1320476967 | R45: 0.1038945722 | S45: 0.253001308 | T45: 0.2595768665
F47: km/h | G47: C
F48: =F44*1.64 -> 15.03333333 | G48: =(G44-32)/1.8 -> 21.11111111
F49: =F45*1.64 -> 1.534608795 | G49: =(G45)/1.8 -> 0.3344051475

Sheet DataWaseca
A1: Date | B1: Time | C1: Observers | D1: Obs No | E1: Sky | F1: Wind | G1: Temp | H1: Exp | I1: Plot | J1: Crop | K1: % Flower Cover | L1: Honey Bee | M1: Bumblebee | N1: Small bee | O1: Flies | P1: Butterflies | Q1: Beetles | R1: Other | S1: Total | T1: T/cov | U1: Notes | V1: Timer Interval
A2: 2017-05-03 | B2: 11:20:04 | C2: ah, re | D2: 1 | E2: Overcast | F2: 15 | G2: 65 | H2: CAP-W-Soy | I2: 506 | J2: PC | K2: 0 | L2: 0 | M2: 0 | N2: 0 | O2: 0 | P2: 0 | Q2: 0 | R2: 0 | S2: =SUM(L2:R2) -> 0 | T2: 0 | V2: 1
A3: 2017-05-03 | B3: 11:22:49 | C3: ah, re | D3: 1 | E3: Overcast | F3: 15 | G3: 65 | H3: CAP-W-Soy | I3: 603 | J3: PC | K3: 1 | L3: 0 | M3: 0 | N3: 0 | O3: 2 | P3: 0 | Q3: 0 | R3: 0 | S3: =SUM(L3:R3) -> 2 | T3: =S3/K3 -> 2 | V3: 1
A4: 2017-05-03 | B4: 11:25:13 | C4: ah, re | D4: 1 | E4: Overcast | F4: 15 | G4: 65 | H4: CAP-W-Soy | I4: 705 | J4: PC | K4: 1 | L4: 0 | M4: 0 | N4: 0 | O4: 5 | P4: 0 | Q4: 0 | R4: 0 | S4: 5 | T4: 5 | V4: 1
A5: 2017-05-03 | B5: 11:26:28 | C5: ah, re | D5: 1 | E5: Overcast | F5: 15 | G5: 65 | H5: CAP-W-Soy | I5: 806 | J5: PC | K5: 0 | L5: 0 | M5: 0 | N5: 0 | O5: 0 | P5: 0 | Q5: 0 | R5: 0 | S5: 0 | T5: 0 | V5: 1
A6: 2017-05-05 | B6: 14:36:34 | C6: ah, re | D6: 2 | E6: Clear | F6: 15 | G6: 73 | H6: CAP-W-Soy | I6: 603 | J6: PC | K6: 5 | L6: 1 | M6: 0 | N6: 0 | O6: 3 | P6: 0 | Q6: 0 | R6: 0 | S6: 4 | T6: 0.8 | V6: 1
A7: 2017-05-05 | B7: 14:37:11 | C7: ah, re | D7: 2 | E7: Clear | F7: 15 | G7: 73 | H7: CAP-W-Soy | I7: 506 | J7: PC | K7: 0 | L7: 0 | M7: 0 | N7: 0 | O7: 0 | P7: 0 | Q7: 0 | R7: 0 | S7: 0 | T7: 0 | V7: 1
A8: 2017-05-05 | B8: 14:39:01 | C8: ah, re | D8: 2 | E8: Clear | F8: 15 | G8: 73 | H8: CAP-W-Soy | I8: 705 | J8: PC | K8: 5 | L8: 1 | M8: 0 | N8: 0 | O8: 6 | P8: 0 | Q8: 1 | R8: 0 | S8: 8 | T8: 1.6 | V8: 1
A9: 2017-05-05 | B9: 14:41:18 | C9: ah, re | D9: 2 | E9: Clear | F9: 15 | G9: 73 | H9: CAP-W-Soy | I9: 806 | J9: PC | K9: 1 | L9: 1 | M9: 0 | N9: 0 | O9: 3 | P9: 0 | Q9: 2 | R9: 0 | S9: 6 | T9: 6 | V9: 1
A10: 2017-05-07 | B10: 13:23:51 | C10: ah, re | D10: 2 | E10: Partly Cloudy | F10: 5 | G10: 73 | H10: CAP-W-Soy | I10: 603 | J10: PC | K10: 7 | L10: 0 | M10: 0 | N10: 0 | O10: 2 | P10: 0 | Q10: 0 | R10: 0 | S10: 2 | T10: 0.2857142857 | V10: 1
A11: 2017-05-07 | B11: 13:28:22 | C11: ah, re | D11: 2 | E11: Partly Cloudy | F11: 5 | G11: 73 | H11: CAP-W-Soy | I11: 705 | J11: PC | K11: 7 | L11: 0 | M11: 0 | N11: 0 | O11: 6 | P11: 0 | Q11: 0 | R11: 0 | S11: 6 | T11: 0.8571428571 | V11: 1
A12: 2017-05-07 | B12: 13:30:03 | C12: ah, re | D12: 2 | E12: Partly Cloudy | F12: 5 | G12: 73 | H12: CAP-W-Soy | I12: 806 | J12: PC | K12: 2 | L12: 0 | M12: 0 | N12: 0 | O12: 3 | P12: 0 | Q12: 0 | R12: 0 | S12: 3 | T12: 1.5 | V12: 1
L13: =SUM(L2:L12) -> 3 | M13: =SUM(M2:M12) -> 0 | N13: 0 | O13: 30 | P13: 0 | Q13: 3 | R13: 0
J14: Averages by observation date
H15: Wind | I15: Temp | J15: Pennycress
B16: Flowers | C16: small bee | D16: flies | E16: total | F16: =AVERAGE(F2:F5) -> 15 | G16: 65 | H16: =F16*1.64 -> 24.6 | I16: =(G16-32)/1.8 -> 18.33333333 | J16: 2018-05-03 | K16: =AVERAGE(K2:K5) -> 0.5 | L16: =AVERAGE(L2:L5) -> 0 | M16: 0 | N16: 0 | O16: 1.75 | P16: 0 | Q16: 0 | R16: 0 | S16: 1.75 | T16: =AVERAGE(T2:T5) -> 1.75
A17: 2017-05-03 | B17: =AVERAGE(K2:K5) -> 0.5 | C17: =AVERAGE(N2:N5) -> 0 | D17: =AVERAGE(O2:O5) -> 1.75 | E17: =AVERAGE(S2:S5) -> 1.75 | F17: =AVERAGE(F6:F9) -> 15 | G17: 73 | H17: =F17*1.64 -> 24.6 | I17: =(G17-32)/1.8 -> 22.77777778 | J17: 2018-05-05 | K17: =AVERAGE(K6:K9) -> 2.75 | L17: =AVERAGE(L6:L9) -> 0.75 | M17: 0 | N17: 0 | O17: 3 | P17: 0 | Q17: 0.75 | R17: 0 | S17: 4.5 | T17: =AVERAGE(T6:T9) -> 2.1
A18: 2017-05-05 | B18: =AVERAGE(K5:K9) -> 2.2 | C18: =AVERAGE(N5:N9) -> 0 | D18: =AVERAGE(O5:O9) -> 2.4 | E18: =AVERAGE(S5:S9) -> 3.6 | F18: =AVERAGE(F10:F12) -> 5 | G18: 73 | H18: =F18*1.64 -> 8.2 | I18: =(G18-32)/1.8 -> 22.77777778 | J18: 2018-05-07 | K18: =AVERAGE(K10:K12) -> 5.333333333 | L18: =AVERAGE(L10:L12) -> 0 | M18: 0 | N18: 0 | O18: 3.666666667 | P18: 0 | Q18: 0 | R18: 0 | S18: 3.666666667 | T18: =AVERAGE(T10:T12) -> 0.880952381
A19: 2017-05-07 | B19: =AVERAGE(K10:K12) -> 5.333333333 | C19: =AVERAGE(N10:N12) -> 0 | D19: =AVERAGE(O10:O12) -> 3.666666667 | E19: =AVERAGE(S10:S12) -> 3.666666667 | J19: S.E.
J20: 2018-05-03 | K20: =STDEV(K2:K5)/SQRT(COUNT(K2:K5)) -> 0.2886751346 | L20: =STDEV(L2:L5)/SQRT(COUNT(L2:L5)) -> 0 | M20: 0 | N20: 0 | O20: 1.181453907 | P20: 0 | Q20: 0 | R20: 0 | S20: 1.181453907 | T20: 1.181453907
J21: 2018-05-05 | K21: =STDEV(K6:K9)/SQRT(COUNT(K6:K9)) -> 1.31497782 | L21: =STDEV(L6:L9)/SQRT(COUNT(L6:L9)) -> 0.25 | M21: 0 | N21: 0 | O21: 1.224744871 | P21: 0 | Q21: 0.4787135539 | R21: 0 | S21: 1.707825128 | T21: 1.340397951
J22: 2018-05-07 | K22: =STDEV(K10:K12)/SQRT(COUNT(K10:K12)) -> 1.666666667 | L22: =STDEV(L10:L12)/SQRT(COUNT(L10:L12)) -> 0 | M22: 0 | N22: 0 | O22: 1.201850425 | P22: 0 | Q22: 0 | R22: 0 | S22: 1.201850425 | T22: 0.3507361872
J24: Overall averages and S.E.
F25: =AVERAGE(F2:F12) -> 12.27272727 | G25: 70.09090909 | J25: Average | K25: =AVERAGE(K2:K12) -> 2.636363636 | L25: =AVERAGE(L2:L12) -> 0.2727272727 | M25: 0 | N25: 0 | O25: 2.727272727 | P25: 0 | Q25: 0.2727272727 | R25: 0 | S25: 3.272727273 | T25: =AVERAGE(T2:T12) -> 1.64025974
F26: =STDEV(F2:F12)/SQRT(COUNT(F2:F12)) -> 1.40835758 | G26: 1.216960039 | J26: S.E. | K26: =STDEV(K2:K12)/SQRT(COUNT(K2:K12)) -> 0.8450145483 | L26: =STDEV(L2:L12)/SQRT(COUNT(L2:L12)) -> 0.140835758 | M26: 0 | N26: 0 | O26: 0.675424568 | P26: 0 | Q26: 0.1949782781 | R26: 0 | S26: 0.8322030903 | T26: =STDEV(T2:T12)/SQRT(COUNT(T2:T12)) -> 0.6154920748
F28: km/h | G28: C
F29: =F25*1.64 -> 20.12727273 | G29: =(G25-32)/1.8 -> 21.16161616
F30: =F26*1.64 -> 2.309706432 | G30: =(G26)/1.8 -> 0.6760889103

Sheet DataAmes
A1: Date | B1: Time | C1: Observers | D1: Obs No | E1: Sky | F1: Wind | G1: Temp | H1: Exp | I1: Plot | J1: Crop | K1: % Flower Cover | L1: Honey Bee | M1: Bumblebee | N1: Small bee | O1: Flies | P1: Butterflies | Q1: Beetles | R1: Other | S1: Total | T1: T/cov | U1: Notes | V1: Timer Interval
A2: 2017-04-25 | B2: 12:36:29 | C2: SP | D2: 1 | E2: Mostly Cloudy | F2: 5 | G2: 60 | H2: CAP-A-Soy | I2: 104 | J2: PC | K2: 3 | L2: 0 | M2: 0 | N2: 0 | O2: 4 | P2: 0 | Q2: 0 | R2: 0 | S2: =SUM(L2:R2) -> 4 | T2: =S2/K2 -> 1.333333333 | V2: 1
A3: 2017-04-25 | B3: 12:40:15 | C3: SP | D3: 1 | E3: Mostly Cloudy | F3: 5 | G3: 60 | H3: CAP-A-Soy | I3: 109 | J3: PC | K3: 1 | L3: 0 | M3: 0 | N3: 1 | O3: 1 | P3: 0 | Q3: 1 | R3: 0 | S3: =SUM(L3:R3) -> 3 | T3: =S3/K3 -> 3 | V3: 1 | Y3: Pennycress
A4: 2017-04-25 | B4: 12:49:01 | C4: SP | D4: 1 | E4: Mostly Cloudy | F4: 5 | G4: 60 | H4: CAP-A-Soy | I4: 203 | J4: PC | K4: 0.01 | L4: 0 | M4: 0 | N4: 1 | O4: 1 | P4: 0 | Q4: 0 | R4: 1 | S4: 3 | T4: 300 | V4: 1 | Y4: Flower | Z4: Small bee | AA4: Fly | AB4: Total
A5: 2017-04-25 | B5: 12:50:33 | C5: SP | D5: 1 | E5: Mostly Cloudy | F5: 5 | G5: 60 | H5: CAP-A-Soy | I5: 205 | J5: PC | K5: 0 | L5: 0 | M5: 0 | N5: 0 | O5: 0 | P5: 0 | Q5: 0 | R5: 0 | S5: 0 | T5: 0 | U5: not counted, poor cover | V5: 1 | X5: 2017-04-25 | Y5: =AVERAGE(K2:K13) -> 0.68 | Z5: =AVERAGE(N2:N13) -> 0.4166666667 | AA5: =AVERAGE(O2:O13) -> 1 | AB5: =AVERAGE(S2:S13) -> 1.583333333
A6: 2017-04-25 | B6: 12:52:05 | C6: SP | D6: 1 | E6: Mostly Cloudy | F6: 5 | G6: 60 | H6: CAP-A-Soy | I6: 209 | J6: PC | K6: 0 | L6: 0 | M6: 0 | N6: 0 | O6: 0 | P6: 0 | Q6: 0 | R6: 0 | S6: 0 | T6: 0 | V6: 1 | X6: 2017-05-04 | Y6: =AVERAGE(K14:K28) -> 1.054 | Z6: =AVERAGE(N14:N28) -> 0.5333333333 | AA6: =AVERAGE(O14:O28) -> 0.6 | AB6: =AVERAGE(S14:S28) -> 1.333333333
A7: 2017-04-25 | B7: 12:53:48 | C7: SP | D7: 1 | E7: Mostly Cloudy | F7: 5 | G7: 60 | H7: CAP-A-Soy | I7: 310 | J7: PC | K7: 0 | L7: 0 | M7: 0 | N7: 0 | O7: 0 | P7: 0 | Q7: 0 | R7: 0 | S7: 0 | T7: 0 | V7: 1 | X7: 2017-05-11 | Y7: =AVERAGE(K29:K52) -> 0.38125 | Z7: =AVERAGE(N29:N52) -> 0.04166666667 | AA7: =AVERAGE(O29:O52) -> 0.5416666667 | AB7: =AVERAGE(S29:S52) -> 0.875
A8: 2017-04-25 | B8: 12:58:51 | C8: SP | D8: 1 | E8: Mostly Cloudy | F8: 5 | G8: 60 | H8: CAP-A-Soy | I8: 306 | J8: PC | K8: 0.1 | L8: 0 | M8: 0 | N8: 1 | O8: 2 | P8: 0 | Q8: 0 | R8: 0 | S8: 3 | T8: 30 | U8: .1% cover | V8: 1 | X8: 2017-05-12 | Y8: =AVERAGE(K53:K75) -> 0.2586956522 | Z8: =AVERAGE(N53:N75) -> 0.347826087 | AA8: =AVERAGE(O53:O75) -> 0.4347826087 | AB8: =AVERAGE(S53:S75) -> 1.086956522
A9: 2017-04-25 | B9: 13:05:13 | C9: SP | D9: 1 | E9: Mostly Cloudy | F9: 5 | G9: 60 | H9: CAP-A-Soy | I9: 303 | J9: PC | K9: 4 | L9: 0 | M9: 0 | N9: 0 | O9: 2 | P9: 0 | Q9: 0 | R9: 0 | S9: 2 | T9: 0.5 | V9: 1 | X9: 2017-05-15 | Y9: =AVERAGE(K76:K99) -> 0.1308333333 | Z9: =AVERAGE(N76:N99) -> 0.125 | AA9: =AVERAGE(O76:O99) -> 0.5 | AB9: =AVERAGE(S76:S99) -> 1.041666667
A10: 2017-04-25 | B10: 13:07:21 | C10: SP | D10: 1 | E10: Mostly Cloudy | F10: 5 | G10: 60 | H10: CAP-A-Soy | I10: 402 | J10: PC | K10: 0 | L10: 0 | M10: 0 | N10: 0 | O10: 0 | P10: 0 | Q10: 0 | R10: 0 | S10: 0 | T10: 0 | U10: not enough flowers | V10: 1 | X10: 2017-05-22 | Y10: =AVERAGE(K100:K104) -> 0.1 | Z10: =AVERAGE(N100:N104) -> 0.6 | AA10: =AVERAGE(O100:O104) -> 3.6 | AB10: =AVERAGE(S100:S104) -> 4.4
A11: 2017-04-25 | B11: 13:09:48 | C11: SP | D11: 1 | E11: Mostly Cloudy | F11: 5 | G11: 60 | H11: CAP-A-Soy | I11: 406 | J11: PC | K11: 0.02 | L11: 0 | M11: 0 | N11: 0 | O11: 2 | P11: 0 | Q11: 0 | R11: 0 | S11: 2 | T11: 100 | V11: 1 | X11: 2017-05-25 | Y11: =AVERAGE(K105:K107) -> 0.7666666667 | Z11: =AVERAGE(N105:N107) -> 0.6666666667 | AA11: =AVERAGE(O105:O107) -> 4.333333333 | AB11: =AVERAGE(S105:S107) -> 5
A12: 2017-04-25 | B12: 13:16:29 | C12: SP | D12: 1 | E12: Mostly Cloudy | F12: 5 | G12: 60 | H12: CAP-A-Soy | I12: 408 | J12: PC | K12: 0 | L12: 0 | M12: 0 | N12: 0 | O12: 0 | P12: 0 | Q12: 0 | R12: 0 | S12: 0 | T12: 0 | U12: not enough flower cover | V12: 1 | X12: 2017-05-30 | Y12: =AVERAGE(K108:K109) -> 0.15 | Z12: =AVERAGE(N108:N109) -> 1 | AA12: =AVERAGE(O108:O109) -> 3.5 | AB12: =AVERAGE(S108:S109) -> 4.5
A13: 2017-04-25 | B13: 13:43:02 | C13: SP | D13: 1 | E13: Mostly Cloudy | F13: 5 | G13: 60 | H13: CAP-A-Corn | I13: 303 | J13: PC | K13: 0.03 | L13: 0 | M13: 0 | N13: 2 | O13: 0 | P13: 0 | Q13: 0 | R13: 0 | S13: 2 | T13: 66.66666667 | V13: 1 | X13: 2017-06-01 | Y13: =AVERAGE(K110:K112) -> 0.1333333333 | Z13: =AVERAGE(N110:N112) -> 1.333333333 | AA13: =AVERAGE(O110:O112) -> 3.666666667 | AB13: =AVERAGE(S110:S112) -> 5.333333333
A14: 2017-05-04 | B14: 14:02:12 | C14: SP | D14: 1 | E14: clear | F14: 10 | G14: 75 | H14: CAP-A-Soy | I14: 103 | J14: PC | K14: 0.2 | L14: 0 | M14: 0 | N14: 1 | O14: 1 | P14: 0 | Q14: 0 | R14: 0 | S14: 2 | T14: 10 | V14: 1
A15: 2017-05-04 | B15: 14:04:01 | C15: SP | D15: 1 | E15: clear | F15: 10 | G15: 75 | H15: CAP-A-Soy | I15: 104 | J15: PC | K15: 4 | L15: 0 | M15: 0 | N15: 1 | O15: 0 | P15: 0 | Q15: 0 | R15: 0 | S15: 1 | T15: 0.25 | V15: 1
A16: 2017-05-04 | B16: 14:09:12 | C16: SP | D16: 1 | E16: clear | F16: 10 | G16: 75 | H16: CAP-A-Soy | I16: 109 | J16: PC | K16: 0.4 | L16: 0 | M16: 0 | N16: 1 | O16: 0 | P16: 0 | Q16: 2 | R16: 0 | S16: 3 | T16: 7.5 | V16: 1
A17: 2017-05-04 | B17: 14:13:41 | C17: SP | D17: 1 | E17: clear | F17: 10 | G17: 75 | H17: CAP-A-Soy | I17: 203 | J17: PC | K17: 0.3 | L17: 0 | M17: 0 | N17: 0 | O17: 2 | P17: 0 | Q17: 0 | R17: 0 | S17: 2 | T17: 6.666666667 | V17: 1
A18: 2017-05-04 | B18: 14:18:02 | C18: SP | D18: 1 | E18: clear | F18: 10 | G18: 75 | H18: CAP-A-Soy | I18: 205 | J18: PC | K18: 0 | L18: 0 | M18: 0 | N18: 0 | O18: 0 | P18: 0 | Q18: 0 | R18: 0 | S18: 0 | T18: 0 | V18: 1
A19: 2017-05-04 | B19: 14:23:22 | C19: SP | D19: 1 | E19: clear | F19: 10 | G19: 75 | H19: CAP-A-Soy | I19: 209 | J19: PC | K19: 0.01 | L19: 0 | M19: 0 | N19: 0 | O19: 0 | P19: 0 | Q19: 0 | R19: 0 | S19: 0 | T19: 0 | V19: 1
A20: 2017-05-04 | B20: 14:25:32 | C20: SP | D20: 1 | E20: clear | F20: 10 | G20: 75 | H20: CAP-A-Soy | I20: 303 | J20: PC | K20: 5 | L20: 0 | M20: 0 | N20: 3 | O20: 2 | P20: 0 | Q20: 0 | R20: 0 | S20: 5 | T20: 1 | V20: 1
A21: 2017-05-04 | B21: 14:29:45 | C21: SP | D21: 1 | E21: clear | F21: 10 | G21: 75 | H21: CAP-A-Soy | I21: 306 | J21: PC | K21: 0.5 | L21: 0 | M21: 0 | N21: 0 | O21: 0 | P21: 0 | Q21: 1 | R21: 0 | S21: 1 | T21: 2 | V21: 1
A22: 2017-05-04 | B22: 14:32:13 | C22: SP | D22: 1 | E22: clear | F22: 10 | G22: 75 | H22: CAP-A-Soy | I22: 310 | J22: PC | K22: 0 | L22: 0 | M22: 0 | N22: 0 | O22: 0 | P22: 0 | Q22: 0 | R22: 0 | S22: 0 | T22: 0 | V22: 1
A23: 2017-05-04 | B23: 14:34:52 | C23: SP | D23: 1 | E23: clear | F23: 10 | G23: 75 | H23: CAP-A-Soy | I23: 402 | J23: PC | K23: 0 | L23: 0 | M23: 0 | N23: 0 | O23: 0 | P23: 0 | Q23: 0 | R23: 0 | S23: 0 | T23: 0 | V23: 1
A24: 2017-05-04 | B24: 14:36:23 | C24: SP | D24: 1 | E24: clear | F24: 10 | G24: 75 | H24: CAP-A-Soy | I24: 406 | J24: PC | K24: 3 | L24: 0 | M24: 0 | N24: 1 | O24: 1 | P24: 0 | Q24: 0 | R24: 0 | S24: 2 | T24: 0.6666666667 | V24: 1
A25: 2017-05-04 | B25: 14:39:27 | C25: SP | D25: 1 | E25: clear | F25: 10 | G25: 75 | H25: CAP-A-Soy | I25: 408 | J25: PC | K25: 0 | L25: 0 | M25: 0 | N25: 0 | O25: 0 | P25: 0 | Q25: 0 | R25: 0 | S25: 0 | T25: 0 | V25: 1
A26: 2017-05-04 | B26: 14:51:43 | C26: SP | D26: 1 | E26: clear | F26: 18 | G26: 75 | H26: CAP-A-Corn | I26: 103 | J26: PC | K26: 0.1 | L26: 0 | M26: 0 | N26: 0 | O26: 0 | P26: 0 | Q26: 0 | R26: 0 | S26: 0 | T26: 0 | V26: 1
A27: 2017-05-04 | B27: 14:53:31 | C27: SP | D27: 1 | E27: clear | F27: 18 | G27: 75 | H27: CAP-A-Corn | I27: 106 | J27: PC | K27: 2 | L27: 0 | M27: 0 | N27: 1 | O27: 2 | P27: 0 | Q27: 0 | R27: 0 | S27: 3 | T27: 1.5 | V27: 1
A28: 2017-05-04 | B28: 14:55:51 | C28: SP | D28: 1 | E28: clear | F28: 18 | G28: 75 | H28: CAP-A-Corn | I28: 109 | J28: PC | K28: 0.3 | L28: 0 | M28: 0 | N28: 0 | O28: 1 | P28: 0 | Q28: 0 | R28: 0 | S28: 1 | T28: 3.333333333 | V28: 1
A29: 2017-05-11 | B29: 14:20:55 | C29: SP | D29: 1 | E29: Mostly Cloudy | F29: 7 | G29: 67 | H29: CAP-A-Soy | I29: 103 | J29: PC | K29: 0.5 | L29: 0 | M29: 0 | N29: 0 | O29: 0 | P29: 0 | Q29: 0 | R29: 0 | S29: 0 | T29: 0 | V29: 1
A30: 2017-05-11 | B30: 14:23:53 | C30: SP | D30: 1 | E30: Mostly Cloudy | F30: 7 | G30: 67 | H30: CAP-A-Soy | I30: 104 | J30: PC | K30: 1 | L30: 0 | M30: 0 | N30: 1 | O30: 0 | P30: 0 | Q30: 0 | R30: 1 | S30: 2 | T30: 2 | V30: 1
A31: 2017-05-11 | B31: 14:30:43 | C31: SP | D31: 1 | E31: Mostly Cloudy | F31: 7 | G31: 67 | H31: CAP-A-Soy | I31: 109 | J31: PC | K31: 2 | L31: 0 | M31: 0 | N31: 0 | O31: 0 | P31: 0 | Q31: 1 | R31: 0 | S31: 1 | T31: 0.5 | V31: 1
A32: 2017-05-11 | B32: 14:34:38 | C32: SP | D32: 1 | E32: Mostly Cloudy | F32: 7 | G32: 67 | H32: CAP-A-Soy | I32: 203 | J32: PC | K32: 2 | L32: 0 | M32: 0 | N32: 0 | O32: 2 | P32: 0 | Q32: 1 | R32: 0 | S32: 3 | T32: 1.5 | V32: 1
A33: 2017-05-11 | B33: 14:35:59 | C33: SP | D33: 1 | E33: Mostly Cloudy | F33: 7 | G33: 67 | H33: CAP-A-Soy | I33: 205 | J33: PC | K33: 0 | L33: 0 | M33: 0 | N33: 0 | O33: 0 | P33: 0 | Q33: 0 | R33: 0 | S33: 0 | T33: 0 | U33: not enough flowers | V33: 1
A34: 2017-05-11 | B34: 14:38:00 | C34: SP | D34: 1 | E34: Mostly Cloudy | F34: 7 | G34: 67 | H34: CAP-A-Soy | I34: 209 | J34: PC | K34: 0.1 | L34: 0 | M34: 0 | N34: 0 | O34: 0 | P34: 0 | Q34: 0 | R34: 0 | S34: 0 | T34: 0 | U34: not enough flowers | V34: 1
A35: 2017-05-11 | B35: 14:41:15 | C35: SP | D35: 1 | E35: Mostly Cloudy | F35: 7 | G35: 67 | H35: CAP-A-Soy | I35: 303 | J35: PC | K35: 0.5 | L35: 0 | M35: 0 | N35: 0 | O35: 0 | P35: 0 | Q35: 0 | R35: 0 | S35: 0 | T35: 0 | V35: 1
A36: 2017-05-11 | B36: 14:44:27 | C36: SP | D36: 1 | E36: Mostly Cloudy | F36: 7 | G36: 67 | H36: CAP-A-Soy | I36: 306 | J36: PC | K36: 1 | L36: 0 | M36: 0 | N36: 0 | O36: 0 | P36: 0 | Q36: 0 | R36: 0 | S36: 0 | T36: 0 | V36: 1
A37: 2017-05-11 | B37: 14:46:02 | C37: SP | D37: 1 | E37: Mostly Cloudy | F37: 7 | G37: 67 | H37: CAP-A-Soy | I37: 310 | J37: PC | K37: 0 | L37: 0 | M37: 0 | N37: 0 | O37: 0 | P37: 0 | Q37: 0 | R37: 0 | S37: 0 | T37: 0 | U37: not enough flowers | V37: 1
A38: 2017-05-11 | B38: 14:48:25 | C38: SP | D38: 1 | E38: Mostly Cloudy | F38: 7 | G38: 67 | H38: CAP-A-Soy | I38: 402 | J38: PC | K38: 0.1 | L38: 0 | M38: 0 | N38: 0 | O38: 2 | P38: 0 | Q38: 1 | R38: 0 | S38: 3 | T38: 30 | V38: 1
A39: 2017-05-11 | B39: 14:51:52 | C39: SP | D39: 1 | E39: Mostly Cloudy | F39: 7 | G39: 67 | H39: CAP-A-Soy | I39: 406 | J39: PC | K39: 0.2 | L39: 0 | M39: 0 | N39: 0 | O39: 0 | P39: 0 | Q39: 0 | R39: 0 | S39: 0 | T39: 0 | V39: 1
A40: 2017-05-11 | B40: 14:54:19 | C40: SP | D40: 1 | E40: Mostly Cloudy | F40: 7 | G40: 67 | H40: CAP-A-Soy | I40: 408 | J40: PC | K40: 0.3 | L40: 0 | M40: 0 | N40: 0 | O40: 1 | P40: 0 | Q40: 0 | R40: 0 | S40: 1 | T40: 3.333333333 | V40: 1
A41: 2017-05-11 | B41: 15:21:00 | C41: SP | D41: 1 | E41: Mostly Cloudy | F41: 10 | G41: 69 | H41: CAP-A-Corn | I41: 103 | J41: PC | K41: 0.2 | L41: 0 | M41: 0 | N41: 0 | O41: 0 | P41: 0 | Q41: 0 | R41: 0 | S41: 0 | T41: 0 | V41: 1
A42: 2017-05-11 | B42: 15:23:17 | C42: SP | D42: 1 | E42: Mostly Cloudy | F42: 10 | G42: 69 | H42: CAP-A-Corn | I42: 106 | J42: PC | K42: 0.1 | L42: 0 | M42: 0 | N42: 0 | O42: 1 | P42: 0 | Q42: 0 | R42: 1 | S42: 2 | T42: 20 | V42: 1
A43: 2017-05-11 | B43: 15:25:42 | C43: SP | D43: 1 | E43: Mostly Cloudy | F43: 10 | G43: 69 | H43: CAP-A-Corn | I43: 109 | J43: PC | K43: 0.1 | L43: 0 | M43: 0 | N43: 0 | O43: 2 | P43: 0 | Q43: 0 | R43: 0 | S43: 2 | T43: 20 | V43: 1
A44: 2017-05-11 | B44: 15:28:17 | C44: SP | D44: 1 | E44: Mostly Cloudy | F44: 10 | G44: 69 | H44: CAP-A-Corn | I44: 203 | J44: PC | K44: 0.2 | L44: 0 | M44: 0 | N44: 0 | O44: 2 | P44: 0 | Q44: 0 | R44: 0 | S44: 2 | T44: 10 | V44: 1
A45: 2017-05-11 | B45: 15:28:56 | C45: SP | D45: 1 | E45: Mostly Cloudy | F45: 10 | G45: 69 | H45: CAP-A-Corn | I45: 205 | J45: PC | K45: 0 | L45: 0 | M45: 0 | N45: 0 | O45: 0 | P45: 0 | Q45: 0 | R45: 0 | S45: 0 | T45: 0 | U45: not enough flowers | V45: 1
A46: 2017-05-11 | B46: 15:31:38 | C46: SP | D46: 1 | E46: Mostly Cloudy | F46: 10 | G46: 69 | H46: CAP-A-Corn | I46: 209 | J46: PC | K46: 0.1 | L46: 0 | M46: 0 | N46: 0 | O46: 0 | P46: 0 | Q46: 0 | R46: 0 | S46: 0 | T46: 0 | V46: 1
A47: 2017-05-11 | B47: 15:34:20 | C47: SP | D47: 1 | E47: Mostly Cloudy | F47: 10 | G47: 69 | H47: CAP-A-Corn | I47: 303 | J47: PC | K47: 0.1 | L47: 0 | M47: 0 | N47: 0 | O47: 0 | P47: 0 | Q47: 1 | R47: 0 | S47: 1 | T47: 10 | V47: 1
A48: 2017-05-11 | B48: 15:39:11 | C48: SP | D48: 1 | E48: Mostly Cloudy | F48: 10 | G48: 69 | H48: CAP-A-Corn | I48: 306 | J48: PC | K48: 0.2 | L48: 0 | M48: 0 | N48: 0 | O48: 0 | P48: 0 | Q48: 0 | R48: 0 | S48: 0 | T48: 0 | V48: 1
A49: 2017-05-11 | B49: 15:43:37 | C49: SP | D49: 1 | E49: Mostly Cloudy | F49: 10 | G49: 69 | H49: CAP-A-Corn | I49: 310 | J49: PC | K49: 0.05 | L49: 0 | M49: 0 | N49: 0 | O49: 0 | P49: 0 | Q49: 0 | R49: 0 | S49: 0 | T49: 0 | V49: 1
A50: 2017-05-11 | B50: 15:45:35 | C50: SP | D50: 1 | E50: Mostly Cloudy | F50: 10 | G50: 69 | H50: CAP-A-Corn | I50: 402 | J50: PC | K50: 0.1 | L50: 0 | M50: 0 | N50: 0 | O50: 0 | P50: 0 | Q50: 1 | R50: 0 | S50: 1 | T50: 10 | V50: 1
A51: 2017-05-11 | B51: 15:48:01 | C51: SP | D51: 1 | E51: Mostly Cloudy | F51: 10 | G51: 69 | H51: CAP-A-Corn | I51: 406 | J51: PC | K51: 0.1 | L51: 0 | M51: 0 | N51: 0 | O51: 1 | P51: 0 | Q51: 0 | R51: 0 | S51: 1 | T51: 10 | V51: 1
A52: 2017-05-11 | B52: 15:49:38 | C52: SP | D52: 1 | E52: Mostly Cloudy | F52: 10 | G52: 69 | H52: CAP-A-Corn | I52: 408 | J52: PC | K52: 0.2 | L52: 0 | M52: 0 | N52: 0 | O52: 2 | P52: 0 | Q52: 0 | R52: 0 | S52: 2 | T52: 10 | V52: 1
A53: 2017-05-12 | B53: 13:08:29 | C53: SP | D53: 1 | E53: Clear | F53: 14 | G53: 69 | H53: CAP-A-Soy | I53: 103 | J53: PC | K53: 0.5 | L53: 0 | M53: 0 | N53: 0 | O53: 1 | P53: 0 | Q53: 1 | R53: 0 | S53: 2 | T53: 4 | V53: 1
A54: 2017-05-12 | B54: 13:10:10 | C54: SP | D54: 1 | E54: Clear | F54: 14 | G54: 69 | H54: CAP-A-Soy | I54: 104 | J54: PC | K54: 0.2 | L54: 0 | M54: 0 | N54: 0 | O54: 0 | P54: 0 | Q54: 1 | R54: 0 | S54: 1 | T54: 5 | V54: 1
A55: 2017-05-12 | B55: 13:18:39 | C55: SP | D55: 1 | E55: Clear | F55: 14 | G55: 69 | H55: CAP-A-Soy | I55: 109 | J55: PC | K55: 2 | L55: 0 | M55: 0 | N55: 1 | O55: 1 | P55: 0 | Q55: 0 | R55: 0 | S55: 2 | T55: 1 | V55: 1
A56: 2017-05-12 | B56: 13:25:57 | C56: SP | D56: 1 | E56: Clear | F56: 14 | G56: 69 | H56: CAP-A-Soy | I56: 205 | J56: PC | K56: 0 | L56: 0 | M56: 0 | N56: 0 | O56: 0 | P56: 0 | Q56: 0 | R56: 0 | S56: 0 | T56: 0 | U56: not enough flowers | V56: 1
A57: 2017-05-12 | B57: 13:26:43 | C57: SP | D57: 1 | E57: Clear | F57: 14 | G57: 69 | H57: CAP-A-Soy | I57: 209 | J57: PC | K57: 0.1 | L57: 0 | M57: 0 | N57: 0 | O57: 0 | P57: 0 | Q57: 0 | R57: 0 | S57: 0 | T57: 0 | U57: not enough flowers | V57: 1
A58: 2017-05-12 | B58: 13:29:04 | C58: SP | D58: 1 | E58: Clear | F58: 14 | G58: 69 | H58: CAP-A-Soy | I58: 303 | J58: PC | K58: 0.1 | L58: 0 | M58: 0 | N58: 0 | O58: 0 | P58: 0 | Q58: 0 | R58: 0 | S58: 0 | T58: 0 | V58: 1
A59: 2017-05-12 | B59: 13:31:48 | C59: SP | D59: 1 | E59: Clear | F59: 14 | G59: 69 | H59: CAP-A-Soy | I59: 306 | J59: PC | K59: 1 | L59: 0 | M59: 0 | N59: 1 | O59: 2 | P59: 0 | Q59: 0 | R59: 0 | S59: 3 | T59: 3 | V59: 1
A60: 2017-05-12 | B60: 13:33:06 | C60: SP | D60: 1 | E60: Clear | F60: 14 | G60: 69 | H60: CAP-A-Soy | I60: 310 | J60: PC | K60: 0 | L60: 0 | M60: 0 | N60: 0 | O60: 0 | P60: 0 | Q60: 0 | R60: 0 | S60: 0 | T60: 0 | U60: not enough flowers | V60: 1
A61: 2017-05-12 | B61: 13:35:32 | C61: SP | D61: 1 | E61: Clear | F61: 14 | G61: 69 | H61: CAP-A-Soy | I61: 402 | J61: PC | K61: 0.1 | L61: 0 | M61: 0 | N61: 0 | O61: 1 | P61: 0 | Q61: 0 | R61: 0 | S61: 1 | T61: 10 | V61: 1
A62: 2017-05-12 | B62: 13:38:13 | C62: SP | D62: 1 | E62: Clear | F62: 14 | G62: 69 | H62: CAP-A-Soy | I62: 406 | J62: PC | K62: 0.1 | L62: 0 | M62: 0 | N62: 0 | O62: 0 | P62: 0 | Q62: 1 | R62: 0 | S62: 1 | T62: 10 | V62: 1
A63: 2017-05-12 | B63: 13:39:57 | C63: SP | D63: 1 | E63: Clear | F63: 14 | G63: 69 | H63: CAP-A-Soy | I63: 408 | J63: PC | K63: 0.3 | L63: 0 | M63: 0 | N63: 2 | O63: 0 | P63: 0 | Q63: 1 | R63: 0 | S63: 3 | T63: 10 | V63: 1
A64: 2017-05-12 | B64: 14:07:00 | C64: SP | D64: 1 | E64: Clear | F64: 9 | G64: 69 | H64: CAP-A-Corn | I64: 103 | J64: PC | K64: 0.1 | L64: 0 | M64: 0 | N64: 0 | O64: 0 | P64: 0 | Q64: 1 | R64: 0 | S64: 1 | T64: 10 | V64: 1
A65: 2017-05-12 | B65: 14:09:50 | C65: SP | D65: 1 | E65: Clear | F65: 9 | G65: 69 | H65: CAP-A-Corn | I65: 106 | J65: PC | K65: 0.2 | L65: 0 | M65: 0 | N65: 0 | O65: 0 | P65: 0 | Q65: 0 | R65: 0 | S65: 0 | T65: 0 | V65: 1
A66: 2017-05-12 | B66: 14:14:10 | C66: SP | D66: 1 | E66: Clear | F66: 9 | G66: 69 | H66: CAP-A-Corn | I66: 109 | J66: PC | K66: 0.2 | L66: 0 | M66: 0 | N66: 0 | O66: 1 | P66: 0 | Q66: 0 | R66: 0 | S66: 1 | T66: 5 | V66: 1
A67: 2017-05-12 | B67: 14:18:53 | C67: SP | D67: 1 | E67: Clear | F67: 9 | G67: 69 | H67: CAP-A-Corn | I67: 203 | J67: PC | K67: 0.2 | L67: 0 | M67: 0 | N67: 0 | O67: 2 | P67: 0 | Q67: 0 | R67: 0 | S67: =SUM(L67:R67) -> 2 | T67: =S67/K67 -> 10 | V67: 1
A68: 2017-05-12 | B68: 14:19:32 | C68: SP | D68: 1 | E68: Clear | F68: 9 | G68: 69 | H68: CAP-A-Corn | I68: 205 | J68: PC | K68: 0 | L68: 0 | M68: 0 | N68: 0 | O68: 0 | P68: 0 | Q68: 0 | R68: 0 | S68: 0 | T68: 0 | U68: not enough flowers | V68: 1
A69: 2017-05-12 | B69: 14:21:38 | C69: SP | D69: 1 | E69: Clear | F69: 9 | G69: 69 | H69: CAP-A-Corn | I69: 209 | J69: PC | K69: 0.1 | L69: 0 | M69: 0 | N69: 0 | O69: 0 | P69: 0 | Q69: 0 | R69: 0 | S69: 0 | T69: 0 | V69: 1
A70: 2017-05-12 | B70: 14:24:39 | C70: SP | D70: 1 | E70: Clear | F70: 9 | G70: 69 | H70: CAP-A-Corn | I70: 303 | J70: PC | K70: 0.1 | L70: 0 | M70: 0 | N70: 1 | O70: 2 | P70: 0 | Q70: 1 | R70: 0 | S70: 4 | T70: 40 | V70: 1
A71: 2017-05-12 | B71: 14:28:24 | C71: SP | D71: 1 | E71: Clear | F71: 9 | G71: 69 | H71: CAP-A-Corn | I71: 306 | J71: PC | K71: 0.2 | L71: 0 | M71: 0 | N71: 2 | O71: 0 | P71: 0 | Q71: 0 | R71: 0 | S71: 2 | T71: 10 | V71: 1
A72: 2017-05-12 | B72: 14:31:29 | C72: SP | D72: 1 | E72: Clear | F72: 9 | G72: 69 | H72: CAP-A-Corn | I72: 310 | J72: PC | K72: 0.05 | L72: 0 | M72: 0 | N72: 1 | O72: 0 | P72: 0 | Q72: 0 | R72: 0 | S72: 1 | T72: 20 | V72: 1
A73: 2017-05-12 | B73: 14:33:34 | C73: SP | D73: 1 | E73: Clear | F73: 9 | G73: 69 | H73: CAP-A-Corn | I73: 402 | J73: PC | K73: 0.1 | L73: 0 | M73: 0 | N73: 0 | O73: 0 | P73: 0 | Q73: 0 | R73: 0 | S73: 0 | T73: 0 | V73: 1
A74: 2017-05-12 | B74: 14:35:57 | C74: SP | D74: 1 | E74: Clear | F74: 9 | G74: 69 | H74: CAP-A-Corn | I74: 406 | J74: PC | K74: 0.1 | L74: 0 | M74: 0 | N74: 0 | O74: 0 | P74: 0 | Q74: 0 | R74: 0 | S74: 0 | T74: 0 | V74: 1
A75: 2017-05-12 | B75: 14:37:39 | C75: SP | D75: 1 | E75: Clear | F75: 9 | G75: 69 | H75: CAP-A-Corn | I75: 408 | J75: PC | K75: 0.2 | L75: 0 | M75: 0 | N75: 0 | O75: 0 | P75: 0 | Q75: 1 | R75: 0 | S75: 1 | T75: 5 | V75: 1
A76: 2017-05-15 | B76: 12:59:33 | C76: SP | D76: 1 | E76: Cloudy | F76: 10 | G76: 78 | H76: CAP-A-Corn | I76: 103 | J76: PC | K76: 0.1 | L76: 0 | M76: 0 | N76: 1 | O76: 1 | P76: 0 | Q76: 1 | R76: 0 | S76: 3 | T76: 30 | V76: 1
A77: 2017-05-15 | B77: 13:01:48 | C77: SP | D77: 1 | E77: Cloudy | F77: 10 | G77: 78 | H77: CAP-A-Corn | I77: 106 | J77: PC | K77: 0.1 | L77: 0 | M77: 0 | N77: 0 | O77: 0 | P77: 0 | Q77: 0 | R77: 0 | S77: 0 | T77: 0 | U77: end of flowering | V77: 1
A78: 2017-05-15 | B78: 13:05:08 | C78: SP | D78: 1 | E78: Cloudy | F78: 10 | G78: 78 | H78: CAP-A-Corn | I78: 109 | J78: PC | K78: 0.1 | L78: 0 | M78: 0 | N78: 0 | O78: 1 | P78: 0 | Q78: 0 | R78: 0 | S78: 1 | T78: 10 | V78: 1
A79: 2017-05-15 | B79: 13:08:51 | C79: SP | D79: 1 | E79: Cloudy | F79: 10 | G79: 78 | H79: CAP-A-Corn | I79: 203 | J79: PC | K79: 0.2 | L79: 0 | M79: 0 | N79: 0 | O79: 2 | P79: 0 | Q79: 0 | R79: 0 | S79: 2 | T79: 10 | V79: 1
A80: 2017-05-15 | B80: 13:09:48 | C80: SP | D80: 1 | E80: Cloudy | F80: 10 | G80: 78 | H80: CAP-A-Corn | I80: 205 | J80: PC | K80: 0 | L80: 0 | M80: 0 | N80: 0 | O80: 0 | P80: 0 | Q80: 0 | R80: 0 | S80: 0 | T80: 0 | U80: not enough flowers | V80: 1
A81: 2017-05-15 | B81: 13:12:11 | C81: SP | D81: 1 | E81: Cloudy | F81: 10 | G81: 78 | H81: CAP-A-Corn | I81: 209 | J81: PC | K81: 0.05 | L81: 0 | M81: 0 | N81: 0 | O81: 0 | P81: 0 | Q81: 1 | R81: 0 | S81: 1 | T81: 20 | U81: end of flowering | V81: 1
A82: 2017-05-15 | B82: 13:15:23 | C82: SP | D82: 1 | E82: Cloudy | F82: 10 | G82: 78 | H82: CAP-A-Corn | I82: 303 | J82: PC | K82: 0.01 | L82: 0 | M82: 0 | N82: 0 | O82: 0 | P82: 0 | Q82: 0 | R82: 0 | S82: 0 | T82: 0 | U82: end of flowering | V82: 1
A83: 2017-05-15 | B83: 13:18:45 | C83: SP | D83: 1 | E83: Cloudy | F83: 10 | G83: 78 | H83: CAP-A-Corn | I83: 306 | J83: PC | K83: 0.1 | L83: 0 | M83: 0 | N83: 0 | O83: 0 | P83: 0 | Q83: 1 | R83: 0 | S83: 1 | T83: 10 | V83: 1
A84: 2017-05-15 | B84: 13:20:35 | C84: SP | D84: 1 | E84: Cloudy | F84: 10 | G84: 78 | H84: CAP-A-Corn | I84: 310 | J84: PC | K84: 0.05 | L84: 0 | M84: 0 | N84: 0 | O84: 0 | P84: 0 | Q84: 0 | R84: 0 | S84: 0 | T84: 0 | V84: 1
A85: 2017-05-15 | B85: 13:22:40 | C85: SP | D85: 1 | E85: Cloudy | F85: 10 | G85: 78 | H85: CAP-A-Corn | I85: 402 | J85: PC | K85: 0.05 | L85: 0 | M85: 0 | N85: 0 | O85: 1 | P85: 0 | Q85: 1 | R85: 0 | S85: 2 | T85: 40 | U85: end of flowering | V85: 1
A86: 2017-05-15 | B86: 13:24:49 | C86: SP | D86: 1 | E86: Cloudy | F86: 10 | G86: 78 | H86: CAP-A-Corn | I86: 406 | J86: PC | K86: 0.05 | L86: 0 | M86: 0 | N86: 0 | O86: 0 | P86: 0 | Q86: 1 | R86: 0 | S86: 1 | T86: 20 | V86: 1
A87: 2017-05-15 | B87: 13:26:19 | C87: SP | D87: 1 | E87: Cloudy | F87: 10 | G87: 78 | H87: CAP-A-Corn | I87: 408 | J87: PC | K87: 0.1 | L87: 0 | M87: 0 | N87: 0 | O87: 1 | P87: 0 | Q87: 1 | R87: 0 | S87: 2 | T87: 20 | V87: 1
A88: 2017-05-15 | B88: 13:35:49 | C88: SP | D88: 1 | E88: Mostly Cloudy | F88: 9 | G88: 74 | H88: CAP-A-Soy | I88: 103 | J88: PC | K88: 0.01 | L88: 0 | M88: 0 | N88: 0 | O88: 1 | P88: 0 | Q88: 1 | R88: 0 | S88: 2 | T88: 200 | U88: end of flowering | V88: 1
A89: 2017-05-15 | B89: 13:37:09 | C89: SP | D89: 1 | E89: Mostly Cloudy | F89: 9 | G89: 74 | H89: CAP-A-Soy | I89: 104 | J89: PC | K89: 0.01 | L89: 0 | M89: 0 | N89: 0 | O89: 1 | P89: 0 | Q89: 0 | R89: 0 | S89: 1 | T89: 100 | U89: end of flowering | V89: 1
A90: 2017-05-15 | B90: 13:40:55 | C90: SP | D90: 1 | E90: Mostly Cloudy | F90: 9 | G90: 74 | H90: CAP-A-Soy | I90: 109 | J90: PC | K90: 0.5 | L90: 0 | M90: 0 | N90: 0 | O90: 0 | P90: 0 | Q90: 1 | R90: 0 | S90: 1 | T90: 2 | V90: 1
A91: 2017-05-15 | B91: 13:44:50 | C91: SP | D91: 1 | E91: Mostly Cloudy | F91: 9 | G91: 74 | H91: CAP-A-Soy | I91: 203 | J91: PC | K91: 0.5 | L91: 0 | M91: 0 | N91: 0 | O91: 1 | P91: 0 | Q91: 0 | R91: 1 | S91: 2 | T91: 4 | V91: 1
A92: 2017-05-15 | B92: 13:45:31 | C92: SP | D92: 1 | E92: Mostly Cloudy | F92: 9 | G92: 74 | H92: CAP-A-Soy | I92: 205 | J92: PC | K92: 0 | L92: 0 | M92: 0 | N92: 0 | O92: 0 | P92: 0 | Q92: 0 | R92: 0 | S92: 0 | T92: 0 | U92: not enough flowers | V92: 1
A93: 2017-05-15 | B93: 13:48:11 | C93: SP | D93: 1 | E93: Mostly Cloudy | F93: 9 | G93: 74 | H93: CAP-A-Soy | I93: 209 | J93: PC | K93: 0.01 | L93: 0 | M93: 0 | N93: 0 | O93: 2 | P93: 0 | Q93: 1 | R93: 0 | S93: 3 | T93: 300 | V93: 1
A94: 2017-05-15 | B94: 13:50:46 | C94: SP | D94: 1 | E94: Mostly Cloudy | F94: 9 | G94: 74 | H94: CAP-A-Soy | I94: 303 | J94: PC | K94: 0 | L94: 0 | M94: 0 | N94: 0 | O94: 0 | P94: 0 | Q94: 0 | R94: 0 | S94: 0 | T94: 0 | U94: end of flowering | V94: 1
A95: 2017-05-15 | B95: 13:52:51 | C95: SP | D95: 1 | E95: Mostly Cloudy | F95: 9 | G95: 74 | H95: CAP-A-Soy | I95: 306 | J95: PC | K95: 1 | L95: 0 | M95: 0 | N95: 0 | O95: 0 | P95: 0 | Q95: 0 | R95: 0 | S95: 0 | T95: 0 | V95: 1
A96: 2017-05-15 | B96: 13:53:49 | C96: SP | D96: 1 | E96: Mostly Cloudy | F96: 9 | G96: 74 | H96: CAP-A-Soy | I96: 310 | J96: PC | K96: 0 | L96: 0 | M96: 0 | N96: 0 | O96: 0 | P96: 0 | Q96: 0 | R96: 0 | S96: 0 | T96: 0 | U96: not enough flowers | V96: 1
A97: 2017-05-15 | B97: 13:55:48 | C97: SP | D97: 1 | E97: Mostly Cloudy | F97: 9 | G97: 74 | H97: CAP-A-Soy | I97: 402 | J97: PC | K97: 0.1 | L97: 0 | M97: 0 | N97: 2 | O97: 0 | P97: 0 | Q97: 0 | R97: 0 | S97: 2 | T97: 20 | V97: 1
A98: 2017-05-15 | B98: 13:57:19 | C98: SP | D98: 1 | E98: Mostly Cloudy | F98: 9 | G98: 74 | H98: CAP-A-Soy | I98: 406 | J98: PC | K98: 0 | L98: 0 | M98: 0 | N98: 0 | O98: 0 | P98: 0 | Q98: 0 | R98: 0 | S98: 0 | T98: 0 | U98: end of flowering | V98: 1
A99: 2017-05-15 | B99: 13:58:53 | C99: SP | D99: 1 | E99: Mostly Cloudy | F99: 9 | G99: 74 | H99: CAP-A-Soy | I99: 408 | J99: PC | K99: 0.1 | L99: 0 | M99: 0 | N99: 0 | O99: 1 | P99: 0 | Q99: 0 | R99: 0 | S99: 1 | T99: 10 | V99: 1
A100: 2017-05-22 | B100: 14:02:49 | C100: SP | D100: 1 | E100: Mostly Cloudy | F100: 11 | G100: 69 | H100: CAP-A-Soy | I100: 205 | J100: PC | K100: 0.2 | L100: 0 | M100: 0 | N100: 0 | O100: 6 | P100: 0 | Q100: 0 | R100: 0 | S100: 6 | T100: 30 | V100: 1
A101: 2017-05-22 | B101: 14:09:38 | C101: SP | D101: 1 | E101: Mostly Cloudy | F101: 11 | G101: 69 | H101: CAP-A-Soy | I101: 402 | J101: PC | K101: 0.2 | L101: 0 | M101: 0 | N101: 3 | O101: 7 | P101: 0 | Q101: 0 | R101: 1 | S101: 11 | T101: 55 | V101: 1
A102: 2017-05-22 | B102: 14:11:13 | C102: SP | D102: 1 | E102: Mostly Cloudy | F102: 11 | G102: 69 | H102: CAP-A-Soy | I102: 408 | J102: PC | K102: 0.1 | L102: 0 | M102: 0 | N102: 0 | O102: 5 | P102: 0 | Q102: 0 | R102: 0 | S102: 5 | T102: 50 | V102: 1
A103: 2017-05-22 | B103: 14:32:12 | C103: SP | D103: 1 | E103: Mostly Cloudy | F103: 13 | G103: 69 | H103: CAP-A-Corn | I103: 203 | J103: PC | K103: 0 | L103: 0 | M103: 0 | N103: 0 | O103: 0 | P103: 0 | Q103: 0 | R103: 0 | S103: 0 | T103: 0 | U103: end of flowering for Pennycress | V103: 1
A104: 2017-05-22 | B104: 14:34:53 | C104: SP | D104: 1 | E104: Mostly Cloudy | F104: 13 | G104: 69 | H104: CAP-A-Corn | I104: 303 | J104: PC | K104: 0 | L104: 0 | M104: 0 | N104: 0 | O104: 0 | P104: 0 | Q104: 0 | R104: 0 | S104: 0 | T104: 0 | U104: end of flowering for PC | V104: 1
A105: 2017-05-25 | B105: 13:29:36 | C105: SP | D105: 1 | E105: Partly Cloudy | F105: 10 | G105: 67 | H105: CAP-A-Soy | I105: 205 | J105: PC | K105: 0.1 | L105: 0 | M105: 0 | N105: 1 | O105: 5 | P105: 0 | Q105: 0 | R105: 0 | S105: 6 | T105: 60
A106: 2017-05-25 | B106: 13:36:07 | C106: SP | D106: 1 | E106: Partly Cloudy | F106: 10 | G106: 67 | H106: CAP-A-Soy | I106: 402 | J106: PC | K106: 0.2 | L106: 0 | M106: 0 | N106: 1 | O106: 6 | P106: 0 | Q106: 0 | R106: 0 | S106: 7 | T106: 35
A107: 2017-05-25 | B107: 13:38:36 | C107: SP | D107: 1 | E107: Partly Cloudy | F107: 10 | G107: 67 | H107: CAP-A-Soy | I107: 408 | J107: PC | K107: 2 | L107: 0 | M107: 0 | N107: 0 | O107: 2 | P107: 0 | Q107: 0 | R107: 0 | S107: 2 | T107: 1
A108: 2017-05-30 | B108: 10:22:08 | C108: SP | D108: 1 | E108: Clear | F108: 15 | G108: 67 | H108: CAP-A-Soy | I108: 205 | J108: PC | K108: 0.2 | L108: 0 | M108: 0 | N108: 1 | O108: 4 | P108: 0 | Q108: 0 | R108: 0 | S108: 5 | T108: 25
A109: 2017-05-30 | B109: 10:23:56 | C109: SP | D109: 1 | E109: Clear | F109: 15 | G109: 67 | H109: CAP-A-Soy | I109: 209 | J109: PC | K109: 0.1 | L109: 0 | M109: 0 | N109: 1 | O109: 3 | P109: 0 | Q109: 0 | R109: 0 | S109: 4 | T109: 40
A110: 2017-06-01 | B110: 13:42:29 | C110: SP | D110: 1 | E110: Clear | F110: 0 | G110: 78 | H110: CAP-A-Soy | I110: 205 | J110: PC | K110: 0.2 | L110: 0 | M110: 0 | N110: 2 | O110: 3 | P110: 0 | Q110: 0 | R110: 1 | S110: 6 | T110: 30
A111: 2017-06-01 | B111: 13:44:10 | C111: SP | D111: 1 | E111: Clear | F111: 0 | G111: 78 | H111: CAP-A-Soy | I111: 209 | J111: PC | K111: 0.1 | L111: 0 | M111: 0 | N111: 1 | O111: 1 | P111: 0 | Q111: 0 | R111: 0 | S111: 2 | T111: 20
A112: 2017-06-01 | B112: 13:48:15 | C112: SP | D112: 1 | E112: Clear | F112: 0 | G112: 78 | H112: CAP-A-Soy | I112: 402 | J112: PC | K112: 0.1 | L112: 0 | M112: 0 | N112: 1 | O112: 7 | P112: 0 | Q112: 0 | R112: 0 | S112: 8 | T112: 80
L113: =SUM(L2:L112) -> 0 | M113: =SUM(M2:M112) -> 0 | N113: 36 | O113: 105 | P113: 0 | Q113: 25 | R113: 6 | S113: 172
A116: 2017-05-11 | B116: 14:26:28 | C116: SP | D116: 1 | E116: Mostly Cloudy | F116: 7 | G116: 67 | H116: CAP-A-Soy | I116: 106 | J116: WC | K116: 0 | L116: 0 | M116: 0 | N116: 0 | O116: 0 | P116: 0 | Q116: 0 | R116: 0 | S116: =SUM(L116:R116) -> 0 | T116: 0 | U116: not enough flowers | V116: 1
A117: 2017-05-11 | B117: 14:28:47 | C117: SP | D117: 1 | E117: Mostly Cloudy | F117: 7 | G117: 67 | H117: CAP-A-Soy | I117: 107 | J117: WC | K117: 0.5 | L117: 0 | M117: 0 | N117: 0 | O117: 1 | P117: 0 | Q117: 1 | R117: 0 | S117: 2 | T117: =S117/K117 -> 4 | V117: 1 | Y117: Winter Camelina
A118: 2017-05-11 | B118: 14:32:56 | C118: SP | D118: 1 | E118: Mostly Cloudy | F118: 7 | G118: 67 | H118: CAP-A-Soy | I118: 202 | J118: WC | K118: 0.1 | L118: 0 | M118: 0 | N118: 1 | O118: 1 | P118: 0 | Q118: 0 | R118: 0 | S118: 2 | T118: 20 | V118: 1 | Y118: Flower | Z118: Sm bee | AA118: Fly | AB118: Total
A119: 2017-05-11 | B119: 14:36:42 | C119: SP | D119: 1 | E119: Mostly Cloudy | F119: 7 | G119: 67 | H119: CAP-A-Soy | I119: 206 | J119: WC | K119: 0 | L119: 0 | M119: 0 | N119: 0 | O119: 0 | P119: 0 | Q119: 0 | R119: 0 | S119: 0 | T119: 0 | U119: no plants | V119: 1 | X119: 2017-05-11 | Y119: =AVERAGE(K116:K137) -> 0.03409090909 | Z119: =AVERAGE(N116:N137) -> 0.1363636364 | AA119: =AVERAGE(O116:O137) -> 0.1363636364 | AB119: =AVERAGE(S116:S137) -> 0.3636363636
A120: 2017-05-11 | B120: 14:39:30 | C120: SP | D120: 1 | E120: Mostly Cloudy | F120: 7 | G120: 67 | H120: CAP-A-Soy | I120: 302 | J120: WC | K120: 0 | L120: 0 | M120: 0 | N120: 0 | O120: 0 | P120: 0 | Q120: 0 | R120: 0 | S120: 0 | T120: 0 | U120: not enough flowers | V120: 1 | X120: 2017-05-12 | Y120: =AVERAGE(K138:K159) -> 0.05 | Z120: =AVERAGE(N138:N159) -> 0.7727272727 | AA120: =AVERAGE(O138:O159) -> 0.2272727273 | AB120: =AVERAGE(S138:S159) -> 1.136363636
A121: 2017-05-11 | B121: 14:42:28 | C121: SP | D121: 1 | E121: Mostly Cloudy | F121: 7 | G121: 67 | H121: CAP-A-Soy | I121: 305 | J121: WC | K121: 0 | L121: 0 | M121: 0 | N121: 0 | O121: 0 | P121: 0 | Q121: 0 | R121: 0 | S121: 0 | T121: 0 | U121: not enough flowers | V121: 1 | X121: 2017-05-15 | Y121: =AVERAGE(K160:K181) -> 0.06363636364 | Z121: =AVERAGE(N160:N181) -> 0.4545454545 | AA121: =AVERAGE(O160:O181) -> 0.1818181818 | AB121: =AVERAGE(S160:S181) -> 0.7727272727
A122: 2017-05-11 | B122: 14:45:36 | C122: SP | D122: 1 | E122: Mostly Cloudy | F122: 7 | G122: 67 | H122: CAP-A-Soy | I122: 308 | J122: WC | K122: 0 | L122: 0 | M122: 0 | N122: 0 | O122: 0 | P122: 0 | Q122: 0 | R122: 0 | S122: 0 | T122: 0 | U122: not enough flowers | V122: 1 | X122: 2017-05-22 | Y122: =AVERAGE(K182:K191) -> 0.581 | Z122: =AVERAGE(N182:N191) -> 1.1 | AA122: =AVERAGE(O182:O191) -> 1.6 | AB122: =AVERAGE(S182:S191) -> 3
A123: 2017-05-11 | B123: 14:49:23 | C123: SP | D123: 1 | E123: Mostly Cloudy | F123: 7 | G123: 67 | H123: CAP-A-Soy | I123: 403 | J123: WC | K123: 0 | L123: 0 | M123: 0 | N123: 0 | O123: 0 | P123: 0 | Q123: 0 | R123: 0 | S123: 0 | T123: 0 | U123: not enough flowers | V123: 1 | X123: 2017-05-25 | Y123: =AVERAGE(K192:K200) -> 0.8011111111 | Z123: =AVERAGE(N192:N200) -> 1.555555556 | AA123: =AVERAGE(O192:O200) -> 0.7777777778 | AB123: =AVERAGE(S192:S200) -> 2.555555556
A124: 2017-05-11 | B124: 14:49:49 | C124: SP | D124: 1 | E124: Mostly Cloudy | F124: 7 | G124: 67 | H124: CAP-A-Soy | I124: 405 | J124: WC | K124: 0 | L124: 0 | M124: 0 | N124: 0 | O124: 0 | P124: 0 | Q124: 0 | R124: 0 | S124: 0 | T124: 0 | U124: not enough flowers | V124: 1 | X124: 2017-05-30 | Y124: =AVERAGE(K201:K204) -> 0.2 | Z124: =AVERAGE(N201:N204) -> 0.25 | AA124: =AVERAGE(O201:O204) -> 0 | AB124: =AVERAGE(S201:S204) -> 0.25
A125: 2017-05-11 | B125: 14:56:01 | C125: SP | D125: 1 | E125: Mostly Cloudy | F125: 7 | G125: 67 | H125: CAP-A-Soy | I125: 409 | J125: WC | K125: 0.1 | L125: 0 | M125: 0 | N125: 1 | O125: 0 | P125: 0 | Q125: 1 | R125: 0 | S125: 2 | T125: 20 | V125: 1 | X125: 2017-06-01 | Y125: =AVERAGE(K205:K213) -> 0.1344444444 | Z125: =AVERAGE(N205:N213) -> 1.333333333 | AA125: =AVERAGE(O205:O213) -> 1.555555556 | AB125: =AVERAGE(S205:S213) -> 3.555555556
A126: 2017-05-11 | B126: 15:19:14 | C126: SP | D126: 1 | E126: Mostly Cloudy | F126: 10 | G126: 69 | H126: CAP-A-Corn | I126: 101 | J126: WC | K126: 0 | L126: 0 | M126: 0 | N126: 0 | O126: 0 | P126: 0 | Q126: 0 | R126: 0 | S126: 0 | T126: 0 | V126: 1
A127: 2017-05-11 | B127: 15:21:20 | C127: SP | D127: 1 | E127: Mostly Cloudy | F127: 10 | G127: 69 | H127: CAP-A-Corn | I127: 104 | J127: WC | K127: 0 | L127: 0 | M127: 0 | N127: 0 | O127: 0 | P127: 0 | Q127: 0 | R127: 0 | S127: 0 | T127: 0 | U127: no plants | V127: 1
A128: 2017-05-11 | B128: 15:24:04 | C128: SP | D128: 1 | E128: Mostly Cloudy | F128: 10 | G128: 69 | H128: CAP-A-Corn | I128: 107 | J128: WC | K128: 0 | L128: 0 | M128: 0 | N128: 0 | O128: 0 | P128: 0 | Q128: 0 | R128: 0 | S128: 0 | T128: 0 | U128: not enough flowers | V128: 1
A129: 2017-05-11 | B129: 15:26:44 | C129: SP | D129: 1 | E129: Mostly Cloudy | F129: 10 | G129: 69 | H129: CAP-A-Corn | I129: 202 | J129: WC | K129: 0 | L129: 0 | M129: 0 | N129: 0 | O129: 0 | P129: 0 | Q129: 0 | R129: 0 | S129: 0 | T129: 0 | U129: not enough flowers | V129: 1
A130: 2017-05-11 | B130: 15:29:40 | C130: SP | D130: 1 | E130: Mostly Cloudy | F130: 10 | G130: 69 | H130: CAP-A-Corn | I130: 206 | J130: WC | K130: 0 | L130: 0 | M130: 0 | N130: 0 | O130: 0 | P130: 0 | Q130: 0 | R130: 0 | S130: 0 | T130: 0 | U130: not enough flowers | V130: 1
A131: 2017-05-11 | B131: 15:32:01 | C131: SP | D131: 1 | E131: Mostly Cloudy | F131: 10 | G131: 69 | H131: CAP-A-Corn | I131: 210 | J131: WC | K131: 0 | L131: 0 | M131: 0 | N131: 0 | O131: 0 | P131: 0 | Q131: 0 | R131: 0 | S131: 0 | T131: 0 | U131: not enough flowers | V131: 1
A132: 2017-05-11 | B132: 15:33:03 | C132: SP | D132: 1 | E132: Mostly Cloudy | F132: 10 | G132: 69 | H132: CAP-A-Corn | I132: 302 | J132: WC | K132: 0 | L132: 0 | M132: 0 | N132: 0 | O132: 0 | P132: 0 | Q132: 0 | R132: 0 | S132: 0 | T132: 0 | U132: no plants | V132: 1
A133: 2017-05-11 | B133: 15:36:29 | C133: SP | D133: 1 | E133: Mostly Cloudy | F133: 10 | G133: 69 | H133: CAP-A-Corn | I133: 305 | J133: WC | K133: 0.05 | L133: 0 | M133: 0 | N133: 1 | O133: 1 | P133: 0 | Q133: 0 | R133: 0 | S133: 2 | T133: 40 | V133: 1
A134: 2017-05-11 | B134: 15:41:56 | C134: SP | D134: 1 | E134: Mostly Cloudy | F134: 10 | G134: 69 | H134: CAP-A-Corn | I134: 308 | J134: WC | K134: 0 | L134: 0 | M134: 0 | N134: 0 | O134: 0 | P134: 0 | Q134: 0 | R134: 0 | S134: 0 | T134: 0 | U134: not enough flowers | V134: 1
A135: 2017-05-11 | B135: 15:46:10 | C135: SP | D135: 1 | E135: Mostly Cloudy | F135: 10 | G135: 69 | H135: CAP-A-Corn | I135: 403 | J135: WC | K135: 0 | L135: 0 | M135: 0 | N135: 0 | O135: 0 | P135: 0 | Q135: 0 | R135: 0 | S135: 0 | T135: 0 | U135: no plants | V135: 1
A136: 2017-05-11 | B136: 15:46:31 | C136: SP | D136: 1 | E136: Mostly Cloudy | F136: 10 | G136: 69 | H136: CAP-A-Corn | I136: 405 | J136: WC | K136: 0 | L136: 0 | M136: 0 | N136: 0 | O136: 0 | P136: 0 | Q136: 0 | R136: 0 | S136: 0 | T136: 0 | U136: no plants | V136: 1
A137: 2017-05-11 | B137: 15:50:12 | C137: SP | D137: 1 | E137: Mostly Cloudy | F137: 10 | G137: 69 | H137: CAP-A-Corn | I137: 409 | J137: WC | K137: 0 | L137: 0 | M137: 0 | N137: 0 | O137: 0 | P137: 0 | Q137: 0 | R137: 0 | S137: 0 | T137: 0 | U137: not enough flowers | V137: 1
A138: 2017-05-12 | B138: 13:12:00 | C138: SP | D138: 1 | E138: Clear | F138: 14 | G138: 69 | H138: CAP-A-Soy | I138: 106 | J138: WC | K138: 0 | L138: 0 | M138: 0 | N138: 0 | O138: 0 | P138: 0 | Q138: 0 | R138: 0 | S138: 0 | T138: 0 | U138: not enough flowers | V138: 1
A139: 2017-05-12 | B139: 13:13:44 | C139: SP | D139: 1 | E139: Clear | F139: 14 | G139: 69 | H139: CAP-A-Soy | I139: 107 | J139: WC | K139: 0.5 | L139: 0 | M139: 0 | N139: 2 | O139: 1 | P139: 0 | Q139: 0 | R139: 0 | S139: 3 | T139: 6 | V139: 1
A140: 2017-05-12 | B140: 13:21:03 | C140: SP | D140: 1 | E140: Clear | F140: 14 | G140: 69 | H140: CAP-A-Soy | I140: 202 | J140: WC | K140: 0.1 | L140: 0 | M140: 0 | N140: 4 | O140: 1 | P140: 0 | Q140: 0 | R140: 1 | S140: 6 | T140: 60 | V140: 1
A141: 2017-05-12 | B141: 13:26:22 | C141: SP | D141: 1 | E141: Clear | F141: 14 | G141: 69 | H141: CAP-A-Soy | I141: 206 | J141: WC | K141: 0 | L141: 0 | M141: 0 | N141: 0 | O141: 0 | P141: 0 | Q141: 0 | R141: 0 | S141: 0 | T141: 0 | U141: no plants | V141: 1
A142: 2017-05-12 | B142: 13:27:03 | C142: SP | D142: 1 | E142: Clear | F142: 14 | G142: 69 | H142: CAP-A-Soy | I142: 302 | J142: WC | K142: 0 | L142: 0 | M142: 0 | N142: 0 | O142: 0 | P142: 0 | Q142: 0 | R142: 0 | S142: 0 | T142: 0 | U142: not enough flowers | V142: 1
A143: 2017-05-12 | B143: 13:29:39 | C143: SP | D143: 1 | E143: Clear | F143: 14 | G143: 69 | H143: CAP-A-Soy | I143: 305 | J143: WC | K143: 0 | L143: 0 | M143: 0 | N143: 0 | O143: 0 | P143: 0 | Q143: 0 | R143: 0 | S143: 0 | T143: 0 | U143: not enough flowers | V143: 1
A144: 2017-05-12 | B144: 13:32:39 | C144: SP | D144: 1 | E144: Clear | F144: 14 | G144: 69 | H144: CAP-A-Soy | I144: 308 | J144: WC | K144: 0 | L144: 0 | M144: 0 | N144: 0 | O144: 0 | P144: 0 | Q144: 0 | R144: 0 | S144: 0 | T144: 0 | U144: not enough flowers | V144: 1
A145: 2017-05-12 | B145: 13:36:04 | C145: SP | D145: 1 | E145: Clear | F145: 14 | G145: 69 | H145: CAP-A-Soy | I145: 403 | J145: WC | K145: 0 | L145: 0 | M145: 0 | N145: 0 | O145: 0 | P145: 0 | Q145: 0 | R145: 0 | S145: 0 | T145: 0 | U145: not enough flowers | V145: 1
A146: 2017-05-12 | B146: 13:36:27 | C146: SP | D146: 1 | E146: Clear | F146: 14 | G146: 69 | H146: CAP-A-Soy | I146: 405 | J146: WC | K146: 0 | L146: 0 | M146: 0 | N146: 0 | O146: 0 | P146: 0 | Q146: 0 | R146: 0 | S146: 0 | T146: 0 | U146: not enough flowers | V146: 1
A147: 2017-05-12 | B147: 13:42:15 | C147: SP | D147: 1 | E147: Clear | F147: 14 | G147: 69 | H147: CAP-A-Soy | I147: 409 | J147: WC | K147: 0.1 | L147: 0 | M147: 0 | N147: 2 | O147: 0 | P147: 0 | Q147: 0 | R147: 0 | S147: 2 | T147: 20 | V147: 1
A148: 2017-05-12 | B148: 14:05:30 | C148: SP | D148: 1 | E148: Clear | F148: 9 | G148: 69 | H148: CAP-A-Corn | I148: 101 | J148: WC | K148: 0 | L148: 0 | M148: 0 | N148: 0 | O148: 0 | P148: 0 | Q148: 0 | R148: 0 | S148: 0 | T148: 0 | U148: no plants | V148: 1
A149: 2017-05-12 | B149: 14:07:46 | C149: SP | D149: 1 | E149: Clear | F149: 9 | G149: 69 | H149: CAP-A-Corn | I149: 104 | J149: WC | K149: 0 | L149: 0 | M149: 0 | N149: 0 | O149: 0 | P149: 0 | Q149: 0 | R149: 0 | S149: 0 | T149: 0 | U149: no plants | V149: 1
A150: 2017-05-12 | B150: 14:12:16 | C150: SP | D150: 1 | E150: Clear | F150: 9 | G150: 69 | H150: CAP-A-Corn | I150: 107 | J150: WC | K150: 0.1 | L150: 0 | M150: 0 | N150: 2 | O150: 0 | P150: 0 | Q150: 0 | R150: 0 | S150: 2 | T150: 20 | V150: 1
A151: 2017-05-12 | B151: 14:17:23 | C151: SP | D151: 1 | E151: Clear | F151: 9 | G151: 69 | H151: CAP-A-Corn | I151: 202 | J151: WC | K151: 0.1 | L151: 0 | M151: 0 | N151: 1 | O151: 1 | P151: 0 | Q151: 1 | R151: 0 | S151: 3 | T151: 30 | V151: 1
A152: 2017-05-12 | B152: 14:19:49 | C152: SP | D152: 1 | E152: Clear | F152: 9 | G152: 69 | H152: CAP-A-Corn | I152: 206 | J152: WC | K152: 0 | L152: 0 | M152: 0 | N152: 0 | O152: 0 | P152: 0 | Q152: 0 | R152: 0 | S152: 0 | T152: 0 | U152: not enough flowers | V152: 1
A153: 2017-05-12 | B153: 14:22:08 | C153: SP | D153: 1 | E153: Clear | F153: 9 | G153: 69 | H153: CAP-A-Corn | I153: 210 | J153: WC | K153: 0 | L153: 0 | M153: 0 | N153: 0 | O153: 0 | P153: 0 | Q153: 0 | R153: 0 | S153: 0 | T153: 0 | U153: not enough flowers | V153: 1
A154: 2017-05-12 | B154: 14:23:11 | C154: SP | D154: 1 | E154: Clear | F154: 9 | G154: 69 | H154: CAP-A-Corn | I154: 302 | J154: WC | K154: 0 | L154: 0 | M154: 0 | N154: 0 | O154: 0 | P154: 0 | Q154: 0 | R154: 0 | S154: 0 | T154: 0 | U154: no plants | V154: 1
A155: 2017-05-12 | B155: 14:26:37 | C155: SP | D155: 1 | E155: Clear | F155: 9 | G155: 69 | H155: CAP-A-Corn | I155: 305 | J155: WC | K155: 0.1 | L155: 0 | M155: 0 | N155: 6 | O155: 1 | P155: 0 | Q155: 0 | R155: 1 | S155: 8 | T155: 80 | V155: 1
A156: 2017-05-12 | B156: 14:29:57 | C156: SP | D156: 1 | E156: Clear | F156: 9 | G156: 69 | H156: CAP-A-Corn | I156: 308 | J156: WC | K156: 0 | L156: 0 | M156: 0 | N156: 0 | O156: 0 | P156: 0 | Q156: 0 | R156: 0 | S156: 0 | T156: 0 | U156: not enough plants | V156: 1
A157: 2017-05-12 | B157: 14:34:07 | C157: SP | D157: 1 | E157: Clear | F157: 9 | G157: 69 | H157: CAP-A-Corn | I157: 403 | J157: WC | K157: 0 | L157: 0 | M157: 0 | N157: 0 | O157: 0 | P157: 0 | Q157: 0 | R157: 0 | S157: 0 | T157: 0 | U157: not enough plants | V157: 1
A158: 2017-05-12 | B158: 14:34:27 | C158: SP | D158: 1 | E158: Clear | F158: 9 | G158: 69 | H158: CAP-A-Corn | I158: 405 | J158: WC | K158: 0 | L158: 0 | M158: 0 | N158: 0 | O158: 0 | P158: 0 | Q158: 0 | R158: 0 | S158: 0 | T158: 0 | U158: not enough plants | V158: 1
A159: 2017-05-12 | B159: 14:39:14 | C159: SP | D159: 1 | E159: Clear | F159: 9 | G159: 69 | H159: CAP-A-Corn | I159: 409 | J159: WC | K159: 0.1 | L159: 0 | M159: 0 | N159: 0 | O159: 1 | P159: 0 | Q159: 0 | R159: 0 | S159: 1 | T159: 10 | V159: 1
A160: 2017-05-15 | B160: 12:57:45 | C160: SP | D160: 1 | E160: Clear | F160: 10 | G160: 78 | H160: CAP-A-Corn | I160: 101 | J160: WC | K160: 0 | L160: 0 | M160: 0 | N160: 0 | O160: 0 | P160: 0 | Q160: 0 | R160: 0 | S160: 0 | T160: 0 | U160: no plants | V160: 1
A161: 2017-05-15 | B161: 13:00:01 | C161: SP | D161: 1 | E161: Cloudy | F161: 10 | G161: 78 | H161: CAP-A-Corn | I161: 104 | J161: WC | K161: 0 | L161: 0 | M161: 0 | N161: 0 | O161: 0 | P161: 0 | Q161: 0 | R161: 0 | S161: 0 | T161: 0 | U161: no plants | V161: 1
A162: 2017-05-15 | B162: 13:03:21 | C162: SP | D162: 1 | E162: Cloudy | F162: 10 | G162: 78 | H162: CAP-A-Corn | I162: 107 | J162: WC | K162: 0.2 | L162: 0 | M162: 0 | N162: 3 | O162: 2 | P162: 0 | Q162: 0 | R162: 0 | S162: 5 | T162: 25 | V162: 1
A163: 2017-05-15 | B163: 13:07:05 | C163: SP | D163: 1 | E163: Cloudy | F163: 10 | G163: 78 | H163: CAP-A-Corn | I163: 202 | J163: WC | K163: 0.1 | L163: 0 | M163: 0 | N163: 1 | O163: 0 | P163: 0 | Q163: 0 | R163: 0 | S163: 1 | T163: 10 | V163: 1
A164: 2017-05-15 | B164: 13:10:06 | C164: SP | D164: 1 | E164: Cloudy | F164: 10 | G164: 78 | H164: CAP-A-Corn | I164: 206 | J164: WC | K164: 0 | L164: 0 | M164: 0 | N164: 0 | O164: 0 | P164: 0 | Q164: 0 | R164: 0 | S164: 0 | T164: 0 | U164: not enough flowers | V164: 1
A165: 2017-05-15 | B165: 13:12:36 | C165: SP | D165: 1 | E165: Cloudy | F165: 10 | G165: 78 | H165: CAP-A-Corn | I165: 210 | J165: WC | K165: 0 | L165: 0 | M165: 0 | N165: 0 | O165: 0 | P165: 0 | Q165: 0 | R165: 0 | S165: 0 | T165: 0 | U165: not enough flowers | V165: 1
A166: 2017-05-15 | B166: 13:13:38 | C166: SP | D166: 1 | E166: Cloudy | F166: 10 | G166: 78 | H166: CAP-A-Corn | I166: 302 | J166: WC | K166: 0 | L166: 0 | M166: 0 | N166: 0 | O166: 0 | P166: 0 | Q166: 0 | R166: 0 | S166: 0 | T166: 0 | U166: not enough plants | V166: 1
A167: 2017-05-15 | B167: 13:16:55 | C167: SP | D167: 1 | E167: Cloudy | F167: 10 | G167: 78 | H167: CAP-A-Corn | I167: 305 | J167: WC | K167: 0.2 | L167: 0 | M167: 0 | N167: 3 | O167: 0 | P167: 0 | Q167: 0 | R167: 0 | S167: 3 | T167: 15 | V167: 1
A168: 2017-05-15 | B168: 13:19:21 | C168: SP | D168: 1 | E168: Cloudy | F168: 10 | G168: 78 | H168: CAP-A-Corn | I168: 308 | J168: WC | K168: 0 | L168: 0 | M168: 0 | N168: 0 | O168: 0 | P168: 0 | Q168: 0 | R168: 0 | S168: 0 | T168: 0 | U168: not enough plants | V168: 1
A169: 2017-05-15 | B169: 13:23:06 | C169: SP | D169: 1 | E169: Cloudy | F169: 10 | G169: 78 | H169: CAP-A-Corn | I169: 403 | J169: WC | K169: 0 | L169: 0 | M169: 0 | N169: 0 | O169: 0 | P169: 0 | Q169: 0 | R169: 0 | S169: 0 | T169: 0 | U169: not enough flowers | V169: 1
A170: 2017-05-15 | B170: 13:23:21 | C170: SP | D170: 1 | E170: Cloudy | F170: 10 | G170: 78 | H170: CAP-A-Corn | I170: 405 | J170: WC | K170: 0 | L170: 0 | M170: 0 | N170: 0 | O170: 0 | P170: 0 | Q170: 0 | R170: 0 | S170: 0 | T170: 0 | U170: not enough flowers | V170: 1
A171: 2017-05-15 | B171: 13:27:36 | C171: SP | D171: 1 | E171: Cloudy | F171: 10 | G171: 78 | H171: CAP-A-Corn | I171: 409 | J171: WC | K171: 0.1 | L171: 0 | M171: 0 | N171: 0 | O171: 0 | P171: 0 | Q171: 0 | R171: 0 | S171: 0 | T171: 0 | V171: 1
A172: 2017-05-15 | B172: 13:37:48 | C172: SP | D172: 1 | E172: Mostly Cloudy | F172: 9 | G172: 74 | H172: CAP-A-Soy | I172: 106 | J172: WC | K172: 0 | L172: 0 | M172: 0 | N172: 0 | O172: 0 | P172: 0 | Q172: 0 | R172: 0 | S172: 0 | T172: 0 | U172: not enough flowers | V172: 1
A173: 2017-05-15 | B173: 13:39:16 | C173: SP | D173: 1 | E173: Mostly Cloudy | F173: 9 | G173: 74 | H173: CAP-A-Soy | I173: 107 | J173: WC | K173: 0.5 | L173: 0 | M173: 0 | N173: 0 | O173: 0 | P173: 0 | Q173: 2 | R173: 0 | S173: 2 | T173: 4 | V173: 1
A174: 2017-05-15 | B174: 13:42:47 | C174: SP | D174: 1 | E174: Mostly Cloudy | F174: 9 | G174: 74 | H174: CAP-A-Soy | I174: 202 | J174: WC | K174: 0.1 | L174: 0 | M174: 0 | N174: 2 | O174: 1 | P174: 0 | Q174: 1 | R174: 0 | S174: 4 | T174: 40 | V174: 1
A175: 2017-05-15 | B175: 13:46:07 | C175: SP | D175: 1 | E175: Mostly Cloudy | F175: 9 | G175: 74 | H175: CAP-A-Soy | I175: 206 | J175: WC | K175: 0 | L175: 0 | M175: 0 | N175: 0 | O175: 0 | P175: 0 | Q175: 0 | R175: 0 | S175: 0 | T175: 0 | U175: no plants | V175: 1
A176: 2017-05-15 | B176: 13:50:02 | C176: SP | D176: 1 | E176: Mostly Cloudy | F176: 9 | G176: 74 | H176: CAP-A-Soy | I176: 302 | J176: WC | K176: 0 | L176: 0 | M176: 0 | N176: 0 | O176: 0 | P176: 0 | Q176: 0 | R176: 0 | S176: 0 | T176: 0 | U176: not enough flowers | V176: 1
A177: 2017-05-15 | B177: 13:51:30 | C177: SP | D177: 1 | E177: Mostly Cloudy | F177: 9 | G177: 74 | H177: CAP-A-Soy | I177: 305 | J177: WC | K177: 0 | L177: 0 | M177: 0 | N177: 0 | O177: 0 | P177: 0 | Q177: 0 | R177: 0 | S177: 0 | T177: 0 | U177: not enough flowers | V177: 1
A178: 2017-05-15 | B178: 13:53:25 | C178: SP | D178: 1 | E178: Mostly Cloudy | F178: 9 | G178: 74 | H178: CAP-A-Soy | I178: 308 | J178: WC | K178: 0 | L178: 0 | M178: 0 | N178: 0 | O178: 0 | P178: 0 | Q178: 0 | R178: 0 | S178: 0 | T178: 0 | U178: not enough flowers | V178: 1
A179: 2017-05-15 | B179: 13:56:16 | C179: SP | D179: 1 | E179: Mostly Cloudy | F179: 9 | G179: 74 | H179: CAP-A-Soy | I179: 403 | J179: WC | K179: 0 | L179: 0 | M179: 0 | N179: 0 | O179: 0 | P179: 0 | Q179: 0 | R179: 0 | S179: 0 | T179: 0 | U179: not enough flowers | V179: 1
A180: 2017-05-15 | B180: 13:56:46 | C180: SP | D180: 1 | E180: Mostly Cloudy | F180: 9 | G180: 74 | H180: CAP-A-Soy | I180: 405 | J180: WC | K180: 0 | L180: 0 | M180: 0 | N180: 0 | O180: 0 | P180: 0 | Q180: 0 | R180: 0 | S180: =SUM(L180:R180) -> 0 | T180: 0 | U180: not enough flowers | V180: 1
A181: 2017-05-15 | B181: 14:00:24 | C181: SP | D181: 1 | E181: Mostly Cloudy | F181: 9 | G181: 74 | H181: CAP-A-Soy | I181: 409 | J181: WC | K181: 0.2 | L181: 0 | M181: 0 | N181: 1 | O181: 1 | P181: 0 | Q181: 0 | R181: 0 | S181: 2 | T181: =S181/K181 -> 10 | V181: 1
A182: 2017-05-22 | B182: 13:55:49 | C182: SP | D182: 1 | E182: Mostly Cloudy | F182: 11 | G182: 69 | H182: CAP-A-Soy | I182: 106 | J182: WC | K182: 0.01 | L182: 0 | M182: 0 | N182: 1 | O182: 1 | P182: 0 | Q182: 0 | R182: 0 | S182: 2 | T182: 200 | V182: 1
A183: 2017-05-22 | B183: 13:58:05 | C183: SP | D183: 1 | E183: Mostly Cloudy | F183: 11 | G183: 69 | H183: CAP-A-Soy | I183: 107 | J183: WC | K183: 0.1 | L183: 0 | M183: 0 | N183: 0 | O183: 1 | P183: 0 | Q183: 1 | R183: 0 | S183: 2 | T183: 20 | V183: 1
A184: 2017-05-22 | B184: 14:00:49 | C184: SP | D184: 1 | E184: Mostly Cloudy | F184: 11 | G184: 69 | H184: CAP-A-Soy | I184: 202 | J184: WC | K184: 0.5 | L184: 0 | M184: 0 | N184: 2 | O184: 0 | P184: 0 | Q184: 1 | R184: 0 | S184: 3 | T184: 6 | V184: 1
A185: 2017-05-22 | B185: 14:05:47 | C185: SP | D185: 1 | E185: Mostly Cloudy | F185: 11 | G185: 69 | H185: CAP-A-Soy | I185: 305 | J185: WC | K185: 0.1 | L185: 0 | M185: 0 | N185: 4 | O185: 3 | P185: 0 | Q185: 0 | R185: 0 | S185: 7 | T185: 70 | V185: 1
A186: 2017-05-22 | B186: 14:13:45 | C186: SP | D186: 1 | E186: Mostly Cloudy | F186: 11 | G186: 69 | H186: CAP-A-Soy | I186: 409 | J186: WC | K186: 1 | L186: 0 | M186: 0 | N186: 0 | O186: 4 | P186: 0 | Q186: 0 | R186: 0 | S186: 4 | T186: 4 | V186: 1
A187: 2017-05-22 | B187: 14:29:09 | C187: SP | D187: 1 | E187: Mostly Cloudy | F187: 13 | G187: 69 | H187: CAP-A-Corn | I187: 107 | J187: WC | K187: 1 | L187: 0 | M187: 0 | N187: 0 | O187: 1 | P187: 0 | Q187: 0 | R187: 0 | S187: 1 | T187: 1 | V187: 1
A188: 2017-05-22 | B188: 14:31:26 | C188: SP | D188: 1 | E188: Mostly Cloudy | F188: 13 | G188: 69 | H188: CAP-A-Corn | I188: 202 | J188: WC | K188: 1 | L188: 0 | M188: 0 | N188: 2 | O188: 1 | P188: 0 | Q188: 0 | R188: 0 | S188: 3 | T188: 3 | V188: 1
A189: 2017-05-22 | B189: 14:33:53 | C189: SP | D189: 1 | E189: Mostly Cloudy | F189: 13 | G189: 69 | H189: CAP-A-Corn | I189: 210 | J189: WC | K189: 0.1 | L189: 0 | M189: 0 | N189: 0 | O189: 0 | P189: 0 | Q189: 0 | R189: 0 | S189: 0 | T189: 0 | V189: 1
A190: 2017-05-22 | B190: 14:36:36 | C190: SP | D190: 1 | E190: Mostly Cloudy | F190: 13 | G190: 69 | H190: CAP-A-Corn | I190: 305 | J190: WC | K190: 1 | L190: 0 | M190: 0 | N190: 1 | O190: 3 | P190: 0 | Q190: 0 | R190: 0 | S190: 4 | T190: 4 | V190: 1
A191: 2017-05-22 | B191: 14:39:47 | C191: SP | D191: 1 | E191: Mostly Cloudy | F191: 13 | G191: 69 | H191: CAP-A-Corn | I191: 409 | J191: WC | K191: 1 | L191: 0 | M191: 0 | N191: 1 | O191: 2 | P191: 0 | Q191: 0 | R191: 1 | S191: 4 | T191: 4 | V191: 1
A192: 2017-05-25 | B192: 13:23:27 | C192: SP | D192: 1 | E192: Partly Cloudy | F192: 10 | G192: 67 | H192: CAP-A-Soy | I192: 106 | J192: WC | K192: 0.01 | L192: 0 | M192: 0 | N192: 0 | O192: 3 | P192: 0 | Q192: 0 | R192: 0 | S192: 3 | T192: 300 | V192: 1
A193: 2017-05-25 | B193: 13:25:12 | C193: SP | D193: 1 | E193: Partly Cloudy | F193: 10 | G193: 67 | H193: CAP-A-Soy | I193: 107 | J193: WC | K193: 1 | L193: 0 | M193: 0 | N193: 3 | O193: 1 | P193: 0 | Q193: 0 | R193: 0 | S193: 4 | T193: 4 | V193: 1
A194: 2017-05-25 | B194: 13:27:34 | C194: SP | D194: 1 | E194: Partly Cloudy | F194: 10 | G194: 67 | H194: CAP-A-Soy | I194: 202 | J194: WC | K194: 1.5 | L194: 0 | M194: 0 | N194: 1 | O194: 0 | P194: 0 | Q194: 0 | R194: 0 | S194: 1 | T194: 0.6666666667 | V194: 1
A195: 2017-05-25 | B195: 13:33:19 | C195: SP | D195: 1 | E195: Partly Cloudy | F195: 10 | G195: 67 | H195: CAP-A-Soy | I195: 305 | J195: WC | K195: 0.1 | L195: 0 | M195: 0 | N195: 2 | O195: 1 | P195: 0 | Q195: 0 | R195: 0 | S195: 3 | T195: 30
A196: 2017-05-25 | B196: 13:42:46 | C196: SP | D196: 1 | E196: Partly Cloudy | F196: 10 | G196: 67 | H196: CAP-A-Corn | I196: 107 | J196: WC | K196: 1.5 | L196: 0 | M196: 0 | N196: 2 | O196: 0 | P196: 0 | Q196: 0 | R196: 0 | S196: 2 | T196: 1.333333333
A197: 2017-05-25 | B197: 13:44:51 | C197: SP | D197: 1 | E197: Partly Cloudy | F197: 10 | G197: 67 | H197: CAP-A-Corn | I197: 202 | J197: WC | K197: 1 | L197: 0 | M197: 0 | N197: 3 | O197: 0 | P197: 0 | Q197: 0 | R197: 1 | S197: 4 | T197: 4
A198: 2017-05-25 | B198: 13:46:55 | C198: SP | D198: 1 | E198: Partly Cloudy | F198: 10 | G198: 67 | H198: CAP-A-Corn | I198: 210 | J198: WC | K198: 0.1 | L198: 0 | M198: 0 | N198: 0 | O198: 0 | P198: 0 | Q198: 0 | R198: 0 | S198: 0 | T198: 0
A199: 2017-05-25 | B199: 13:49:11 | C199: SP | D199: 1 | E199: Partly Cloudy | F199: 10 | G199: 67 | H199: CAP-A-Corn | I199: 305 | J199: WC | K199: 1 | L199: 0 | M199: 0 | N199: 1 | O199: 1 | P199: 0 | Q199: 0 | R199: 0 | S199: 2 | T199: 2
A200: 2017-05-25 | B200: 13:52:04 | C200: SP | D200: 1 | E200: Partly Cloudy | F200: 10 | G200: 67 | H200: CAP-A-Corn | I200: 409 | J200: WC | K200: 1 | L200: 1 | M200: 0 | N200: 2 | O200: 1 | P200: 0 | Q200: 0 | R200: 0 | S200: 4 | T200: 4
A201: 2017-05-30 | B201: 10:19:07 | C201: SP | D201: 1 | E201: Clear | F201: 15 | G201: 67 | H201: CAP-A-Soy | I201: 107 | J201: WC | K201: 0.1 | L201: 0 | M201: 0 | N201: 1 | O201: 0 | P201: 0 | Q201: 0 | R201: 0 | S201: 1 | T201: 10
A202: 2017-05-30 | B202: 10:20:31 | C202: SP | D202: 1 | E202: Clear | F202: 15 | G202: 67 | H202: CAP-A-Soy | I202: 202 | J202: WC | K202: 0.1 | L202: 0 | M202: 0 | N202: 0 | O202: 0 | P202: 0 | Q202: 0 | R202: 0 | S202: 0 | T202: 0
... 58 more rows

Sheet TimeCharts

Sheet PieCharts

Sheet Regression
A1: Year | B1: Site | C1: Crop | D1: Date | E1: Time | F1: Radiation | G1: Wind | H1: Temp | I1: Cover | J1: Honey | K1: Bumble | L1: Small | M1: Flies | N1: Butterfly | O1: Beetle | P1: Other | Q1: Total
A2: 2017 | B2: Ames | C2: PC | D2: 115 | E2: 13 | F2: 67 | G2: 8.2 | H2: 15.55555556 | I2: 0.68 | J2: 0 | K2: 0 | L2: 0.4166666667 | M2: 1 | N2: 0 | O2: 0.08333333333 | P2: 0.08333333333 | Q2: 1.583333333
A3: 2017 | B3: Ames | C3: PC | D3: 124 | E3: 14 | F3: 100 | G3: 19.024 | H3: 23.88888889 | I3: 1.054 | J3: 0 | K3: 0 | L3: 0.5333333333 | M3: 0.6 | N3: 0 | O3: 0.2 | P3: 0 | Q3: 1.333333333
A4: 2017 | B4: Ames | C4: PC | D4: 131 | E4: 15 | F4: 67 | G4: 13.94 | H4: 20 | I4: 0.38125 | J4: 0 | K4: 0 | L4: 0.04166666667 | M4: 0.5416666667 | N4: 0 | O4: 0.2083333333 | P4: 0.08333333333 | Q4: 0.875
A5: 2017 | B5: Ames | C5: PC | D5: 132 | E5: 14 | F5: 100 | G5: 18.68173913 | H5: 20.55555556 | I5: 0.2586956522 | J5: 0 | K5: 0 | L5: 0.347826087 | M5: 0.4347826087 | N5: 0 | O5: 0.3043478261 | P5: 0 | Q5: 1.086956522
A6: 2017 | B6: Ames | C6: PC | D6: 135 | E6: 13.5 | F6: 0 | G6: 15.58 | H6: 24.44444444 | I6: 0.1308333333 | J6: 0 | K6: 0 | L6: 0.125 | M6: 0.5 | N6: 0 | O6: 0.375 | P6: 0.04166666667 | Q6: 1.041666667
A7: 2017 | B7: Ames | C7: PC | D7: 142 | E7: 14.25 | F7: 67 | G7: 19.352 | H7: 20.55555556 | I7: 0.1 | J7: 0 | K7: 0 | L7: 0.6 | M7: 3.6 | N7: 0 | O7: 0 | P7: 0.2 | Q7: 4.4
A8: 2017 | B8: Ames | C8: PC | D8: 145 | E8: 13.5 | F8: 33 | G8: 16.4 | H8: 19.44444444 | I8: 0.7666666667 | J8: 0 | K8: 0 | L8: 0.6666666667 | M8: 4.333333333 | N8: 0 | O8: 0 | P8: 0 | Q8: 5
A9: 2017 | B9: Ames | C9: PC | D9: 150 | E9: 10.5 | F9: 100 | G9: 24.6 | H9: 19.44444444 | I9: 0.15 | J9: 0 | K9: 0 | L9: 1 | M9: 3.5 | N9: 0 | O9: 0 | P9: 0 | Q9: 4.5
A10: 2017 | B10: Ames | C10: PC | D10: 152 | E10: 13.75 | F10: 100 | G10: 0 | H10: 25.55555556 | I10: 0.1333333333 | J10: 0 | K10: 0 | L10: 1.333333333 | M10: 3.666666667 | N10: 0 | O10: 0 | P10: 0.3333333333 | Q10: 5.333333333
A11: 2017 | B11: Waseca | C11: PC | D11: 123 | E11: 11.5 | F11: 0 | G11: 24.6 | H11: 18.33333333 | I11: 0.5 | J11: 0 | K11: 0 | L11: 0 | M11: 1.75 | N11: 0 | O11: 0 | P11: 0 | Q11: 1.75
A12: 2017 | B12: Waseca | C12: PC | D12: 125 | E12: 14.5 | F12: 100 | G12: 24.6 | H12: 22.77777778 | I12: 2.75 | J12: 0.75 | K12: 0 | L12: 0 | M12: 3 | N12: 0 | O12: 0.75 | P12: 0 | Q12: 4.5
A13: 2017 | B13: Waseca | C13: PC | D13: 127 | E13: 13.5 | F13: 33 | G13: 8.2 | H13: 22.77777778 | I13: 5.333333333 | J13: 0 | K13: 0 | L13: 0 | M13: 3.666666667 | N13: 0 | O13: 0 | P13: 0 | Q13: 3.666666667
A14: 2017 | B14: Morris | C14: PC | D14: 124 | E14: 13 | F14: 33 | G14: 16.4 | H14: 18.33333333 | I14: 0.75 | J14: 0 | K14: 0 | L14: 0.5 | M14: 0.5 | N14: 0 | O14: 0 | P14: 0.25 | Q14: 1.25
A15: 2017 | B15: Morris | C15: PC | D15: 125 | E15: 12.25 | F15: 33 | G15: 24.6 | H15: 21.11111111 | I15: 0.875 | J15: 0 | K15: 0 | L15: 0.5 | M15: 0.25 | N15: 0 | O15: 0.75 | P15: 0 | Q15: 1.5
A16: 2017 | B16: Morris | C16: PC | D16: 126 | E16: 11.75 | F16: 100 | G16: 8.2 | H16: 21.11111111 | I16: 1 | J16: 0 | K16: 0 | L16: 0.5 | M16: 0.75 | N16: 0 | O16: 1 | P16: 0.5 | Q16: 2.75
A17: 2017 | B17: Morris | C17: PC | D17: 132 | E17: 12 | F17: 100 | G17: 24.6 | H17: 21.11111111 | I17: 4 | J17: 0 | K17: 0 | L17: 0.5 | M17: 1.25 | N17: 0 | O17: 0.25 | P17: 0.5 | Q17: 2.5
A18: 2017 | B18: Morris | C18: PC | D18: 134 | E18: 12.5 | F18: 100 | G18: 8.2 | H18: 23.88888889 | I18: 3 | J18: 0 | K18: 0 | L18: 0 | M18: 0.25 | N18: 0 | O18: 0 | P18: 0 | Q18: 0.25
A19: 2017 | B19: Morris | C19: PC | D19: 135 | E19: 15.25 | F19: 0 | G19: 8.2 | H19: 21.11111111 | I19: 1.5 | J19: 0 | K19: 0 | L19: 1.25 | M19: 0.25 | N19: 0 | O19: 0.25 | P19: 0 | Q19: 1.75
A20: 2017 | B20: Ames | C20: WC | D20: 131 | E20: 15.5 | F20: 67 | G20: 14.16363636 | H20: 20.05050505 | I20: 0.03409090909 | J20: 0 | K20: 0 | L20: 0.1363636364 | M20: 0.1363636364 | N20: 0 | O20: 0.09090909091 | P20: 0 | Q20: 0.3636363636
A21: 2017 | B21: Ames | C21: WC | D21: 132 | E21: 14 | F21: 100 | G21: 18.48727273 | H21: 20.55555556 | I21: 0.05 | J21: 0 | K21: 0 | L21: 0.7727272727 | M21: 0.2272727273 | N21: 0 | O21: 0.04545454545 | P21: 0.09090909091 | Q21: 1.136363636
A22: 2017 | B22: Ames | C22: WC | D22: 135 | E22: 13.5 | F22: 0 | G22: 15.65454545 | H22: 24.54545455 | I22: 0.06363636364 | J22: 0 | K22: 0 | L22: 0.4545454545 | M22: 0.1818181818 | N22: 0 | O22: 0.1363636364 | P22: 0 | Q22: 0.7727272727
A23: 2017 | B23: Ames | C23: WC | D23: 142 | E23: 14.25 | F23: 67 | G23: 19.68 | H23: 20.55555556 | I23: 0.581 | J23: 0 | K23: 0 | L23: 1.1 | M23: 1.6 | N23: 0 | O23: 0.2 | P23: 0.1 | Q23: 3
A24: 2017 | B24: Ames | C24: WC | D24: 145 | E24: 13.5 | F24: 33 | G24: 16.4 | H24: 19.44444444 | I24: 0.8011111111 | J24: 0.1111111111 | K24: 0 | L24: 1.555555556 | M24: 0.7777777778 | N24: 0 | O24: 0 | P24: 0.1111111111 | Q24: 2.555555556
A25: 2017 | B25: Ames | C25: WC | D25: 150 | E25: 10.5 | F25: 100 | G25: 24.6 | H25: 19.44444444 | I25: 0.2 | J25: 0 | K25: 0 | L25: 0.25 | M25: 0 | N25: 0 | O25: 0 | P25: 0 | Q25: 0.25
A26: 2017 | B26: Ames | C26: WC | D26: 152 | E26: 14 | F26: 100 | G26: 5.466666667 | H26: 25.55555556 | I26: 0.1344444444 | J26: 0.1111111111 | K26: 0 | L26: 1.333333333 | M26: 1.555555556 | N26: 0 | O26: 0.5555555556 | P26: 0 | Q26: 3.555555556

Sheet Main
C1: Timer: | D1: 1 | E1: (min)
B3: Experiment | C3: Sky Cover | D3: Wind (mph) | E3: Temp (F) | F3: Observers | G3: No
F5: MT, JE | G5: 1
A6: Plot Number: | D6: PC | E6: % Flower Cover:
A9: 4
A17: 2
B19: Notes:

Sheet Setup
A2: Sky | B2: Wind | C2: Temps | D2: Experitment | E2: Flower Cover | F2: Plot Number | G2: Crop | H2: Exp 2
A3: Clear | B3: 0 | C3: 50 | D3: CAP-M | E3: <1 | F3: 101 | G3: WC | H3: CAP-M
A4: Partly Cloudy | B4: 5 | C4: 55 | E4: 1 | F4: 103 | G4: PC | H4: CAP-M
A5: Mostly Cloudy | B5: 10 | C5: 60 | E5: 5 | F5: 104 | G5: WC | H5: CAP-M
A6: Overcast | B6: 15 | C6: 65 | E6: 10 | F6: 106 | G6: PC | H6: CAP-M
B7: 20 | C7: 70 | E7: 15 | F7: 107 | G7: WC | H7: CAP-M
B8: 25 | C8: 75 | E8: 20 | F8: 109 | G8: PC | H8: CAP-M
B9: 30 | C9: 80 | E9: 25 | F9: 112 | G9: WC | H9: CAP-M
B10: 35 | C10: 85 | E10: 30 | F10: 113 | G10: PC | H10: CAP-M
B11: 40 | C11: 90 | E11: 35 | F11: 115 | G11: PC | H11: CAP-M
E12: 40 | F12: 116 | G12: WC | H12: CAP-M
E13: 45 | F13: 119 | G13: PC | H13: CAP-M
E14: 50 | F14: 120 | G14: WC | H14: CAP-M
E15: 55 | F15: 122 | G15: WC | H15: CAP-M
E16: 60 | F16: 123 | G16: PC | H16: CAP-M
E17: 65 | F17: 125 | G17: WC | H17: CAP-M
F18: 126 | G18: PC | H18: CAP-M
F19: 128 | G19: WC | H19: CAP-M
F20: 130 | G20: PC | H20: CAP-M
F21: 132 | G21: PC | H21: CAP-M
F22: 133 | G22: WC | H22: CAP-M
F23: 135 | G23: WC | H23: CAP-M
F24: 136 | G24: PC | H24: CAP-M
F25: 138 | G25: PC | H25: CAP-M
F26: 139 | G26: WC | H26: CAP-M
F27: 201 | G27: WC | H27: CAP-M
F28: 203 | G28: PC | H28: CAP-M
F29: 204 | G29: WC | H29: CAP-M
F30: 206 | G30: PC | H30: CAP-M
F31: 207 | G31: WC | H31: CAP-M
F32: 209 | G32: PC | H32: CAP-M
F33: 212 | G33: WC | H33: CAP-M
F34: 213 | G34: PC | H34: CAP-M
F35: 215 | G35: PC | H35: CAP-M
F36: 216 | G36: WC | H36: CAP-M
F37: 219 | G37: PC | H37: CAP-M
F38: 220 | G38: WC | H38: CAP-M
F39: 222 | G39: WC | H39: CAP-M
F40: 223 | G40: PC | H40: CAP-M
F41: 225 | G41: WC | H41: CAP-M
F42: 226 | G42: PC | H42: CAP-M
F43: 228 | G43: WC | H43: CAP-M
F44: 230 | G44: PC | H44: CAP-M
F45: 232 | G45: PC | H45: CAP-M
F46: 233 | G46: WC | H46: CAP-M
F47: 235 | G47: WC | H47: CAP-M
F48: 236 | G48: PC | H48: CAP-M
F49: 238 | G49: PC | H49: CAP-M
F50: 239 | G50: WC | H50: CAP-M
